Workbook

Sheet MODULOS

Sheet COMPRAS

Sheet REGISTRO
B1: RESTAURANTE CAMINOS DE HERRADURA
B3: DIARIO GENERAL DE COMPRAS Y VENTAS
B5: PROVEEDOR / CLIENTE | C5: RUC o n° CED. | D5: FECHA | E5: DETALLE | H5: N° FACTURA
B12: CODIGO | C12: CUENTA | D12: DEBE | E12: HABER
B13: 1.1.04 | C13: INVENTARIO DE MATERIA PRIMA
B14: 1.1.05 | C14: INVENTARIO DE MATERIALES INDIRECTOS
B15: 1.1.09 | C15: IVA EN COMPRAS
B16: 1.1.01 | C16: CAJA
B17: 1.1.02 | C17: BANCOS
B18: 2.1.01 | C18: CUENTAS POR PAGAR
B19: 1.1.03 | C19: CUENTAS POR COBRAR
B20: 4.1.01 | C20: VENTAS
B21: 2.1.09 | C21: ABONO VENTAS (SERVICIOS)
B22: 2.1.06 | C22: IVA VENTAS
D24: =SUBTOTAL(9,D13:D23) -> 0 | E24: =SUBTOTAL(9,E13:E23) -> 0
D25: =D24-E24 -> 0

Sheet CONTABILIDAD
B1: RESTAURANTE CAMINOS DE HERRADURA
B3: CONTABILIDAD - DIARIO GENERAL
B5: FECHA | C5: DETALLE | D5: N° FACTURA, NTA DE VTA O CHEQUE
B8: CODIGO | C8: CUENTA | D8: DEBE | E8: HABER
B9: 1.1.01 | C9: CAJA
B10: 1.1.02 | C10: BANCOS
B11: 1.1.03 | C11: CUENTAS POR COBRAR
B12: 1.1.04 | C12: INVENTARIO DE MATERIA PRIMA
B13: 1.1.05 | C13: INVENTARIO DE MATERIALES INDIRECTOS
B14: 1.1.06 | C14: INVENTARIO DE PRODUCTO EN PROCESO
B15: 1.1.07 | C15: INVENTARIO DE PRODUCTO TERMINADO
B16: 1.1.08 | C16: SUMINISTROS DE OFICINA
B17: 1.1.10 | C17: IVA COMPRAS
B18: 1.1.11 | C18: ANTICIPO RETENCIÓN EN LA FUENTE
B19: 1.1.12 | C19: IMPUESTO A LA RENTA PAGADOS POR ANTIC.
B20: 1.2.01 | C20: TERRENO
B21: 1.2.02 | C21: EDIFICIOS
B22: 1.2.03 | C22: (-) DEP. ACUM. EDIFICIOS
B23: 1.2.04 | C23: MOBILIARIO Y EQUIPO
B24: 1.2.05 | C24: (-) DEP. ACUM. MOB. Y EQUIPO
B25: 1.2.06 | C25: VEHÍCULOS
B26: 1.2.07 | C26: (-) DEP. ACUM. VEHÍCULO
B29: 1.2.08 | C29: EQUIPO DE OFICINA
B30: 1.2.09 | C30: (-) DEP. EQU. DE OFICINA
B31: 1.2.10 | C31: EQUIPO DE COMPUTACIÓN
B32: 1.2.11 | C32: (-) DEP. EQUIPO DE COMPUTACIÓN
B33: 2.1.01 | C33: CUENTAS POR PAGAR
B34: 2.1.02 | C34: IESS POR PAGAR
B35: 2.1.03 | C35: SUELDO ACUMULADOS POR PAGAR
B36: 2.1.04 | C36: PROVISIONES PATRONALES POR PAGAR
B37: 2.1.05 | C37: IVA POR PAGAR
B38: 2.1.06 | C38: IVA VENTAS
B39: 2.1.07 | C39: IMPUESTO A LA RENTA POR PAGAR
B40: 2.1.08 | C40: PRESTAMO BANCARIO POR PAGAR <1Año
B41: 2.2.01 | C41: PRESTAMO BANCARIO POR PAGAR >1Año
B42: 2.2.02 | C42: HIPOTECA POR PAGAR
B43: 3.1.01 | C43: CAPITAL
B44: 3.1.02 | C44: UTILIDAD DEL EJERCICIO
B45: 3.1.03 | C45: PERDIDA DEL EJERCICIO
B46: 4.1.01 | C46: VENTAS (SERVICIOS PRESTADOS)
B47: 4.1.02 | C47: DESCUENTO EN VENTAS (SERV. PREST.)
B48: 5.1.02 | C48: NÓMINA DE FABRICA
B49: 5.1.03 | C49: COSTOS INDIRECTOS DE FABRICACIÓN
B50: 6.1.01 | C50: GASTO SUELDOS
B51: 6.1.02 | C51: GASTO APORTE PATRONAL
B52: 6.1.03 | C52: GASTO SUMINISTROS DE OFICINA
B53: 6.1.04 | C53: GASTO SUMINISTROS DE SERVICIO
B54: 6.1.05 | C54: GASTOS GENERALES
B55: 6.1.06 | C55: GASTO DEP. DE EDIFICIOS
B56: 6.1.07 | C56: GASTO. DEP. VEHÍCULO
B57: 6.1.08 | C57: GASTO. DEP. MUEBLES Y ENSERES
B58: 6.1.09 | C58: GASTO. DEP. EQU. DE OFICINA
B59: 6.1.10 | C59: GASTO. DEP. EQU. DE COMPUTACIÓN
B60: 6.2.01 | C60: GASTO PUBLICIDAD
B61: 6.2.02 | C61: GASTO TRANSPORTE
B62: 6.3.01 | C62: GASTO INTERES
B63: 6.3.02 | C63: FLETES EN COMPRAS
B64: 5.1.02 | C64: MANO DE OBRA INDIRECTA
B65: 5.1.04 | C65: OTROS COSTOS INDIRECTOS
C66: CIF APLICADOS
B67: 5. | C67: COSTO DE VENTA
B68: 5.1.02.01 | C68: MANO DE OBRA DIRECTA
B69: 5.1.03.01 | C69: DEPRECIACIÓN FABRICA
B70: 2.1.09 | C70: ABONO VENTAS (SERVICIOS PRESTADOS)
C71: SUB APLICACIÓN CIF
C72: SOBRE APLICACIÓN CIF
B73: 1.1.09 | C73: SUMINITROS DE SERVICIO
B74: 1.3.01 | C74: MENAJE Y VAJILLA
B75: 1.3.02 | C75: (-)DEP. ACUM. MENAJE Y VAJILLA
B76: 75 | C76: #'MY75'!A1
D78: =SUBTOTAL(9,D9:D77) -> 0 | E78: =SUBTOTAL(9,E9:E77) -> 0
D79: =D78-E78 -> 0

Sheet MY1
B2: RESTAURANTE CAMINOS DE HERRADURA
B4: MAYOR
B6: Cuenta: | C6: =REGISTRO!C13 -> INVENTARIO DE MATERIA PRIMA | D6: Codigo: | E6: =REGISTRO!B13 -> 1.1.04
B7: Fecha de Corte: | C7: =NOW() -> 2010-06-10T10:03:54.010
B9: FECHA | C9: DETALLE | D9: DEBE | E9: HABER
B12: 27 de febrero | C12: SE TRASPASA MP A LA PRODUCCIÓN ORDEN N° 503 | E12: $811.36
B13: 26 de febrero | C13: compras varias Orden N° 503 | D13: $83.66
B14: 26 de febrero | C14: compra de pollos Orden N° 503 | D14: $168.75
B15: 26 de febrero | C15: compra de carne Orden N° 503 | D15: $294.10
B16: 26 de febrero | C16: compras varias Orden N° 503 | D16: $45.85
B17: 26 de febrero | C17: compra de verduras orden N° 503 | D17: $24.00
B18: 26 de febrero | C18: compra de verduras y hortalizas Orden N° 503 | D18: $80.00
B19: 26 de febrero | C19: compras de verduras y frutas Orden N° 503 | D19: $55.00
B20: 26 de febrero | C20: compras de verduras Orden N° 503 | D20: $60.00
B21: 10 DE FEBRERO | C21: SE TRASPASA MP A LA PRODUCCIÓN | E21: $663.49
B22: 12 de febrero | C22: compras varias Orden N° 501 | D22: $83.66
B23: 12 de febrero | C23: compra de pollo Orden N° 501 | D23: $168.75
B24: 12 de febrero | C24: Compra de carne Orden N° 501 | D24: $181.47
B25: 12 de febrero | C25: Compras varias Orden N° 501 | D25: $15.85
B26: 12 de febrero | C26: compra de menudencia N° 501 | D26: $44.00
B27: 12 de febrero | C27: compra de verduras, hortalizas y frutas N° 501 | D27: $60.00
B28: 12 de febrero | C28: compra de verduras N° 501 | D28: $45.84
B29: 12 de febrero | C29: compra de verduras N° 501 | D29: $63.92
B30: 05 de febrero | C30: EL TRASPASO DE LA MP. A PRODUCCION N° 500 | E30: $203.65
B31: 04 de febrero | C31: compra de varias Orden N° 500 | D31: $45.06
B32: 04 de febrero | C32: compra de varias Orden N° 500 | D32: $4.00
B33: 04 de febrero | C33: Compra de pollo Orden N° 500 | D33: $66.96
B34: 04 de febrero | C34: Compra de carne | D34: $46.88
B35: 04 de febrero | C35: Compra de verduras Orden N°. 500 | D35: $24.91
B36: 04 de febrero | C36: Compra de verduras Orden N°. 500 | D36: $15.84
C37: INVENTARIO INICIAL | D37: $140.00
D39: =SUM(D10:D37) -> $1,818.50 | E39: =SUM(E10:E36) -> $1,678.50
C40: SALDO | D40: =IF(D39>E39,D39-E39,"") -> $140.00 | E40: =IF(E39>D39,E39-D39,"") -> 

Sheet MY2
B2: RESTAURANTE CAMINOS DE HERRADURA
B4: MAYOR
B6: Cuenta: | C6: =CONTABILIDAD!C13 -> INVENTARIO DE MATERIALES INDIRECTOS | D6: Codigo: | E6: =REGISTRO!B14 -> 1.1.05
B7: Fecha de Corte: | C7: =NOW() -> 2010-06-10T10:03:54.010
B9: FECHA | C9: DETALLE | D9: DEBE | E9: HABER
D14: =SUM(D10:D11) -> 0 | E14: =SUM(E10:E11) -> 0
C15: SALDO | D15: =IF(D14>E14,D14-E14,"") ->  | E15: =IF(E14>D14,E14-D14,"") -> 

Sheet MY3
B2: RESTAURANTE CAMINOS DE HERRADURA
B4: MAYOR
B6: Cuenta: | C6: =REGISTRO!C15 -> IVA EN COMPRAS | D6: Codigo: | E6: =REGISTRO!B15 -> 1.1.09
B7: Fecha de Corte: | C7: =NOW() -> 2010-06-10T10:03:54.010
B9: FECHA | C9: DETALLE | D9: DEBE | E9: HABER
B12: 26 de febrero | C12: compras varias | D12: $10.04
B13: 26 de febrero | C13: compra de pollos | D13: $20.25
B14: 26 de febrero | C14: compra de carne | D14: $35.29
B15: 12 de febrero | C15: compras varias Orden N° 501 | D15: $10.04
B16: 12 de febrero | C16: compra de pollo Orden N° 501 | D16: $20.25
B17: 12 de febrero | C17: Compra de carne Orden N° 501 | D17: $21.78
B18: 04 de febrero | C18: compra de varias Orden N° 500 | D18: $5.41
B19: 04 de febrero | C19: Compra de pollo Orden N° 500 | D19: $8.04
B20: 04 de febrero | C20: Compra de carne | D20: $5.62
D23: =SUM(D10:D20) -> $136.72 | E23: =SUM(E10:E20) -> 0
C24: SALDO | D24: =IF(D23>E23,D23-E23,"") -> $136.72 | E24: =IF(E23>D23,E23-D23,"") -> 

Sheet MY4
B2: RESTAURANTE CAMINOS DE HERRADURA
B4: MAYOR
B6: Cuenta: | C6: =REGISTRO!C16 -> CAJA | D6: Codigo: | E6: =REGISTRO!B16 -> 1.1.01
B7: Fecha de Corte: | C7: =NOW() -> 2010-06-10T10:03:54.010
B9: FECHA | C9: DETALLE | D9: DEBE | E9: HABER
B12: 01 de marzo | C12: EL PAGO DE DISCOMOVIL | E12: $40.00
B13: 01 de marzo | C13: EL CONSUMO S.O Y S.S. EL PAGO DE S. ASEO Y GAS | E13: $37.80
B14: 01 de marzo | C14: EL PAGO DE AGUA, LUZ, TELEFONO | E14: $33.34
B15: 01 de marzo | C15: SE PAGA A SARANCE VISIÓN TV POR PUBLICIDAD | E15: $50.00
B16: 01 de marzo | C16: PAGO DE SUELDO A JEFE DE RESTAURANTE | E16: $120.00
B17: 01 de marzo | C17: PAGO DEL 50% DE LA DEUDA AL SEÑOR RENAN HARO | E17: $292.57
B18: 01 de marzo | C18: PAGO DEL 70% DE LA DEUDA A MR. POLLO | E18: $317.10
B19: 27 de febrero | C19: ABONO DE CONTRATO N° 506 | D19: $100.00
B20: 27 de febrero | C20: ABONO DE CONTRATO N° 505 | D20: $162.00
B21: 26 de febrero | C21: compras varias orden N° 503 | E21: $45.85
B22: 26 de febrero | C22: compra de verduras orden N° 503 | E22: $24.00
B23: 26 de febrero | C23: compra de verduras y hortalizas orden N° 503 | E23: $80.00
B24: 26 de febrero | C24: compras de verduras y frutas orden N° 503 | E24: $55.00
B25: 26 de febrero | C25: compras de verduras orden N° 503 | E25: $60.00
B26: 20 de febrero | C26: ABONO PARA UN BANQUETE CONTRATO N° 504 | D26: $100.00
B27: 16 de febrero | C27: ABONO PARA UN BANQUETE CONTRATO N° 503 | D27: $300.00
B28: 15 de febrero | C28: ABONO PARA UN BANQUETE CONTRATO N° 502 | D28: $200.00
B29: 14 de febrero | C29: SE CANCELA MANO DE OBRA ORDEN N° 500 | E29: $60.00
B30: 14 de febrero | C30: EL COBRO DE LA CUENTA PENDIENTE ORDEN N° 501 | D30: $1,438.00
B31: 12 de febrero | C31: Compras varias Orden N° 501 | E31: $15.85
B32: 12 de febrero | C32: compra de menudencia Orden N° 501 | E32: $44.00
B33: 12 de febrero | C33: compra de verduras, hortalizas y frutas Orden N° 501 | E33: $60.00
B34: 12 de febrero | C34: compra de verduras Orden N° 501 | E34: $45.84
B35: 12 de febrero | C35: compra de verduras Orden N° 501 | E35: $63.92
B36: 10 DE FEBRERO | C36: SE RECIBE UN ANTICIPO DE UN BANQUETE Orden N° 501 | D36: $200.00
B37: 05 de febrero | C37: SE COBRA LA CUENTA PENDIENTE - ORDEN N° 500 | D37: $504.00
B38: 04 de febrero | C38: compra de varias Orden N° 500 | E38: $4.00
B39: 04 de febrero | C39: Compra de verduras Orden N°. 500 | E39: $24.91
B40: 04 de febrero | C40: Compra de verduras Orden N°. 500 | E40: $15.84
B41: 01 de febrero | C41: Estado de Situación inicial | D41: $500.00
D44: =SUM(D10:D41) -> $3,504.00 | E44: =SUM(E10:E41) -> $1,490.02
C45: SALDO | D45: =IF(D44>E44,D44-E44,"") -> $2,013.98 | E45: =IF(E44>D44,E44-D44,"") -> 

Sheet MY5
B2: RESTAURANTE CAMINOS DE HERRADURA
B4: MAYOR
B6: Cuenta: | C6: =REGISTRO!C17 -> BANCOS | D6: Codigo: | E6: =REGISTRO!B17 -> 1.1.02
B7: Fecha de Corte: | C7: =NOW() -> 2010-06-10T10:03:54.010
B9: FECHA | C9: DETALLE | D9: DEBE | E9: HABER
D14: =SUM(D10:D11) -> 0 | E14: =SUM(E10:E11) -> 0
C15: SALDO | D15: =IF(D14>E14,D14-E14,"") ->  | E15: =IF(E14>D14,E14-D14,"") -> 

Sheet MY6
B2: RESTAURANTE CAMINOS DE HERRADURA
B4: MAYOR
B6: Cuenta: | C6: =REGISTRO!C18 -> CUENTAS POR PAGAR | D6: Codigo: | E6: =REGISTRO!B18 -> 2.1.01
B7: Fecha de Corte: | C7: =NOW() -> 2010-06-10T10:03:54.010
B9: FECHA | C9: DETALLE | D9: DEBE | E9: HABER
B12: 01 de marzo | C12: PAGO DEL 50% DE LA DEUDA AL SEÑOR RENAN HARO | D12: $292.57
B13: 01 de marzo | C13: PAGO DEL 70% DE LA DEUDA A MR. POLLO | D13: $317.10
B14: 27 de febrero | C14: SE REGISTRA LA MANO DE OBRA UTILIZADA ORDEN N° 503 | E14: $120.00
B15: 26 de febrero | C15: compras varias | E15: $93.70
B16: 26 de febrero | C16: compra de pollos | E16: $189.00
B17: 26 de febrero | C17: compra de carne | E17: $329.39
B18: 14 de febrero | C18: SE CANCELA MANO DE OBRA ORDEN N° 500 | D18: $60.00
B19: 13 DE FEBRERO | C19: SE REGISTRA LA MANO DE OBRA | E19: $16.00
B20: 12 de febrero | C20: compras varias Orden N° 501 | E20: $93.70
B21: 12 de febrero | C21: compra de pollo Orden N° 501 | E21: $189.00
B22: 12 de febrero | C22: Compra de carne Orden N° 501 | E22: $203.25
B23: 05 de febrero | C23: SE REGISTRA LA MANO DE OBRA N° 500 | E23: $60.00
B24: 04 de febrero | C24: compra de varias Orden N° 500 | E24: $50.47
B25: 04 de febrero | C25: Compra de pollo Orden N° 500 | E25: $75.00
B26: 04 de febrero | C26: Compra de carne | E26: $52.50
B27: 01 de febrero | C27: Estado de Situación inicial | E27: $200.00
D30: =SUM(D10:D27) -> $669.67 | E30: =SUM(E10:E27) -> $1,672.01
C31: SALDO | D31: =IF(D30>E30,D30-E30,"") ->  | E31: =IF(E30>D30,E30-D30,"") -> $1,002.34

Sheet MY7
B2: RESTAURANTE CAMINOS DE HERRADURA
B4: MAYOR
B6: Cuenta: | C6: =REGISTRO!C19 -> CUENTAS POR COBRAR | D6: Codigo: | E6: =REGISTRO!B19 -> 1.1.03
B7: Fecha de Corte: | C7: =NOW() -> 2010-06-10T10:03:54.010
B9: FECHA | C9: DETALLE | D9: DEBE | E9: HABER
D14: =SUM(D10:D11) -> 0 | E14: =SUM(E10:E11) -> 0
C15: SALDO | D15: =IF(D14>E14,D14-E14,"") ->  | E15: =IF(E14>D14,E14-D14,"") -> 

Sheet MY10
B2: RESTAURANTE CAMINOS DE HERRADURA
B4: MAYOR
B6: Cuenta: | C6: =CONTABILIDAD!C11 -> CUENTAS POR COBRAR | D6: Codigo: | E6: =CONTABILIDAD!B11 -> 1.1.03
B7: Fecha de Corte: | C7: =NOW() -> 2010-06-10T10:03:54.010
B9: FECHA | C9: DETALLE | D9: DEBE | E9: HABER
B12: 27 de febrero | C12: Servicios - banquetes | D12: $1,044.00
B13: 14 de febrero | C13: EL COBRO DE LA CUENTA PENDIENTE ORDEN N° 501 | E13: $1,438.00
B14: 13 de febrero | C14: ventas de servicio orden N°. 501 | D14: $1,438.00
B15: 05 de febrero | C15: SE COBRA LA CUENTA PENDIENTE - ORDEN N° 500 | E15: $504.00
B16: 05 de febrero | C16: LA VENTA DEL SERVICIO - ORDEN N° 500 | D16: $504.00
B17: 01 de febrero | C17: Estado de Situación inicial | D17: $430.00
D20: =SUM(D10:D17) -> $3,416.00 | E20: =SUM(E10:E17) -> $1,942.00
C21: SALDO | D21: =IF(D20>E20,D20-E20,"") -> $1,474.00 | E21: =IF(E20>D20,E20-D20,"") -> 

Sheet MY13
B2: RESTAURANTE CAMINOS DE HERRADURA
B4: MAYOR
B6: Cuenta: | C6: =CONTABILIDAD!C14 -> INVENTARIO DE PRODUCTO EN PROCESO | D6: Codigo: | E6: =CONTABILIDAD!B14 -> 1.1.06
B7: Fecha de Corte: | C7: =NOW() -> 2010-06-10T10:03:54.010
B9: FECHA | C9: DETALLE | D9: DEBE | E9: HABER
B12: 27 de febrero | C12: PRODUCTO TERMINADO ORDEN N° 503 | E12: $1,285.36
B13: 27 de febrero | C13: CIF APLICADOS A PRODUCCIÓN ORDEN N° 503 | D13: $354.00
B14: 27 de febrero | C14: LA MANO DE OBRA SE TRASPASA A LA PRODUCCIÓN ORDEN N° 503 | D14: $120.00
B15: 27 de febrero | C15: SE TRASPASA MP A LA PRODUCCIÓN ORDEN N° 503 | D15: $811.36
B16: 13 DE FEBRERO | C16: SE REGISTRA EL PRODUCTO TERMINADO ORDEN N° 501 | E16: $1,062.99
B17: 13 DE FEBRERO | C17: LOS CIF APLICADOS | D17: $383.50
B18: 13 DE FEBRERO | C18: SE TRASPASA LA MANO DE OBRA A LA PRODUCCIÓN | D18: $16.00
B19: 13 DE FEBRERO | C19: SE TRASPASA MP A LA PRODUCCIÓN | D19: $663.49
B20: 05 de febrero | C20: EL PRODUCTO TERMINADO | E20: $381.65
B21: 05 de febrero | C21: CIF APLICADOS A PRODUCCIÓN | D21: $118.00
B22: 05 de febrero | C22: SE TRASPASA LA NOMINA DE FABRICA A PRODUCCION | D22: $60.00
B23: 05 de febrero | C23: EL TRASPASO DE LA MP. A PRODUCCION | D23: $203.65
D26: =SUM(D10:D23) -> $2,730.00 | E26: =SUM(E10:E23) -> $2,730.00
C27: SALDO | D27: =IF(D26>E26,D26-E26,"") ->  | E27: =IF(E26>D26,E26-D26,"") -> 

Sheet MY14
B2: RESTAURANTE CAMINOS DE HERRADURA
B4: MAYOR
B6: Cuenta: | C6: =CONTABILIDAD!C15 -> INVENTARIO DE PRODUCTO TERMINADO | D6: Codigo: | E6: =CONTABILIDAD!B15 -> 1.1.07
B7: Fecha de Corte: | C7: =NOW() -> 2010-06-10T10:03:54.010
B9: FECHA | C9: DETALLE | D9: DEBE | E9: HABER
B12: 27 de febrero | C12: COSTO DE VENTA ORDEN N° 503 | E12: $1,285.36
B13: 27 de febrero | C13: PRODUCTO TERMINADO ORDEN N° 503 | D13: $1,285.36
B14: 13 DE FEBRERO | C14: COSTO DE VENTA | E14: $1,062.99
B15: 13 DE FEBRERO | C15: SE REGISTRA EL PRODUCTO TERMINADO ORDEN N° 501 | D15: $1,062.99
B16: 05 de febrero | C16: EL COSTO DE VENTA | E16: $381.65
B17: 05 de febrero | C17: EL PRODUCTO TERMINADO | D17: $381.65
D20: =SUM(D10:D17) -> $2,730.00 | E20: =SUM(E10:E17) -> $2,730.00
C21: SALDO | D21: =IF(D20>E20,D20-E20,"") ->  | E21: =IF(E20>D20,E20-D20,"") -> 

Sheet MY15
B2: RESTAURANTE CAMINOS DE HERRADURA
B4: MAYOR
B6: Cuenta: | C6: =CONTABILIDAD!C16 -> SUMINISTROS DE OFICINA | D6: Codigo: | E6: =CONTABILIDAD!B16 -> 1.1.08
B7: Fecha de Corte: | C7: =NOW() -> 2010-06-10T10:03:54.010
B9: FECHA | C9: DETALLE | D9: DEBE | E9: HABER
B12: 01 de marzo | C12: CONSUMO DE SUMINISTROS DE OFICINA | E12: $1.00
B13: 01 de febrero | C13: ESTADO DE SITUACIÓN INICIAL | D13: $100.00
D16: =SUM(D10:D13) -> $100.00 | E16: =SUM(E10:E13) -> $1.00
C17: SALDO | D17: =IF(D16>E16,D16-E16,"") -> $99.00 | E17: =IF(E16>D16,E16-D16,"") -> 

Sheet MY17
B2: RESTAURANTE CAMINOS DE HERRADURA
B4: MAYOR
B6: Cuenta: | C6: =CONTABILIDAD!C18 -> ANTICIPO RETENCIÓN EN LA FUENTE | D6: Codigo: | E6: =CONTABILIDAD!B18 -> 1.1.11
B7: Fecha de Corte: | C7: =NOW() -> 2010-06-10T10:03:54.010
B9: FECHA | C9: DETALLE | D9: DEBE | E9: HABER
D14: =SUM(D10:D11) -> 0 | E14: =SUM(E10:E11) -> 0
C15: SALDO | D15: =IF(D14>E14,D14-E14,"") ->  | E15: =IF(E14>D14,E14-D14,"") -> 

Sheet MY18
B2: RESTAURANTE CAMINOS DE HERRADURA
B4: MAYOR
B6: Cuenta: | C6: =CONTABILIDAD!C19 -> IMPUESTO A LA RENTA PAGADOS POR ANTIC. | D6: Codigo: | E6: =CONTABILIDAD!B19 -> 1.1.12
B7: Fecha de Corte: | C7: =NOW() -> 2010-06-10T10:03:54.010
B9: FECHA | C9: DETALLE | D9: DEBE | E9: HABER
D14: =SUM(D10:D11) -> 0 | E14: =SUM(E10:E11) -> 0
C15: SALDO | D15: =IF(D14>E14,D14-E14,"") ->  | E15: =IF(E14>D14,E14-D14,"") -> 

Sheet MY19
B2: RESTAURANTE CAMINOS DE HERRADURA
B4: MAYOR
B6: Cuenta: | C6: =CONTABILIDAD!C20 -> TERRENO | D6: Codigo: | E6: =CONTABILIDAD!B20 -> 1.2.01
B7: Fecha de Corte: | C7: =NOW() -> 2010-06-10T10:03:54.010
B9: FECHA | C9: DETALLE | D9: DEBE | E9: HABER
B12: 01 de febrero | C12: Estado de Situación inicial | D12: $50,000.00
D15: =SUM(D10:D12) -> $50,000.00 | E15: =SUM(E10:E12) -> 0
C16: SALDO | D16: =IF(D15>E15,D15-E15,"") -> $50,000.00 | E16: =IF(E15>D15,E15-D15,"") -> 

Sheet MY20
B2: RESTAURANTE CAMINOS DE HERRADURA
B4: MAYOR
B6: Cuenta: | C6: =CONTABILIDAD!C21 -> EDIFICIOS | D6: Codigo: | E6: =CONTABILIDAD!B21 -> 1.2.02
B7: Fecha de Corte: | C7: =NOW() -> 2010-06-10T10:03:54.010
B9: FECHA | C9: DETALLE | D9: DEBE | E9: HABER
B12: 01 de febrero | C12: Estado de Situación inicial | D12: $230,000.00
D15: =SUM(D10:D12) -> $230,000.00 | E15: =SUM(E10:E12) -> 0
C16: SALDO | D16: =IF(D15>E15,D15-E15,"") -> $230,000.00 | E16: =IF(E15>D15,E15-D15,"") -> 

Sheet MY21
B2: RESTAURANTE CAMINOS DE HERRADURA
B4: MAYOR
B6: Cuenta: | C6: =CONTABILIDAD!C22 -> (-) DEP. ACUM. EDIFICIOS | D6: Codigo: | E6: =CONTABILIDAD!B22 -> 1.2.03
B7: Fecha de Corte: | C7: =NOW() -> 2010-06-10T10:03:54.010
B9: FECHA | C9: DETALLE | D9: DEBE | E9: HABER
B12: 01 de marzo | C12: LA DEPRECIACIÓN ACUMULADA | E12: $125.00
B13: 01 de febrero | C13: Estado de Situación inicial | D13: $(12,500.00)
D16: =SUM(D10:D13) -> $(12,500.00) | E16: =SUM(E10:E13) -> $125.00
C17: SALDO | D17: =IF(D16>E16,D16-E16,"") ->  | E17: =IF(E16>D16,E16-D16,"") -> $12,625.00

Sheet MY22
B2: RESTAURANTE CAMINOS DE HERRADURA
B4: MAYOR
B6: Cuenta: | C6: =CONTABILIDAD!C23 -> MOBILIARIO Y EQUIPO | D6: Codigo: | E6: =CONTABILIDAD!B23 -> 1.2.04
B7: Fecha de Corte: | C7: =NOW() -> 2010-06-10T10:03:54.010
B9: FECHA | C9: DETALLE | D9: DEBE | E9: HABER
B12: 01 de febrero | C12: Estado de Situación inicial | D12: $13,526.50
D15: =SUM(D10:D12) -> $13,526.50 | E15: =SUM(E10:E12) -> 0
C16: SALDO | D16: =IF(D15>E15,D15-E15,"") -> $13,526.50 | E16: =IF(E15>D15,E15-D15,"") -> 

Sheet MY23
B2: RESTAURANTE CAMINOS DE HERRADURA
B4: MAYOR
B6: Cuenta: | C6: =CONTABILIDAD!C24 -> (-) DEP. ACUM. MOB. Y EQUIPO | D6: Codigo: | E6: =CONTABILIDAD!B24 -> 1.2.05
B7: Fecha de Corte: | C7: =NOW() -> 2010-06-10T10:03:54.010
B9: FECHA | C9: DETALLE | D9: DEBE | E9: HABER
B12: 01 de marzo | C12: LA DEPRECIACIÓN ACUMULADA | E12: $112.72
B13: 01 de febrero | C13: Estado de Situación inicial | D13: $(6,763.25)
D16: =SUM(D10:D13) -> $(6,763.25) | E16: =SUM(E10:E13) -> $112.72
C17: SALDO | D17: =IF(D16>E16,D16-E16,"") ->  | E17: =IF(E16>D16,E16-D16,"") -> $6,875.97

Sheet MY24
B2: RESTAURANTE CAMINOS DE HERRADURA
B4: MAYOR
B6: Cuenta: | C6: =CONTABILIDAD!C25 -> VEHÍCULOS | D6: Codigo: | E6: =CONTABILIDAD!B25 -> 1.2.06
B7: Fecha de Corte: | C7: =NOW() -> 2010-06-10T10:03:54.010
B9: FECHA | C9: DETALLE | D9: DEBE | E9: HABER
D14: =SUM(D10:D11) -> 0 | E14: =SUM(E10:E11) -> 0
C15: SALDO | D15: =IF(D14>E14,D14-E14,"") ->  | E15: =IF(E14>D14,E14-D14,"") -> 

Sheet MY25
B2: RESTAURANTE CAMINOS DE HERRADURA
B4: MAYOR
B6: Cuenta: | C6: =CONTABILIDAD!C26 -> (-) DEP. ACUM. VEHÍCULO | D6: Codigo: | E6: =CONTABILIDAD!B26 -> 1.2.07
B7: Fecha de Corte: | C7: =NOW() -> 2010-06-10T10:03:54.010
B9: FECHA | C9: DETALLE | D9: DEBE | E9: HABER
D14: =SUM(D10:D11) -> 0 | E14: =SUM(E10:E11) -> 0
C15: SALDO | D15: =IF(D14>E14,D14-E14,"") ->  | E15: =IF(E14>D14,E14-D14,"") -> 

Sheet MY26
B2: RESTAURANTE CAMINOS DE HERRADURA
B4: MAYOR
B6: Cuenta: | C6: =CONTABILIDAD!#REF! ->  | D6: Codigo: | E6: =CONTABILIDAD!#REF! -> 
B7: Fecha de Corte: | C7: =NOW() -> 2010-06-10T10:03:54.010
B9: FECHA | C9: DETALLE | D9: DEBE | E9: HABER
D14: =SUM(D10:D11) -> 0 | E14: =SUM(E10:E11) -> 0
C15: SALDO | D15: =IF(D14>E14,D14-E14,"") ->  | E15: =IF(E14>D14,E14-D14,"") -> 

Sheet MY27
B2: RESTAURANTE CAMINOS DE HERRADURA
B4: MAYOR
B6: Cuenta: | C6: =CONTABILIDAD!#REF! ->  | D6: Codigo: | E6: =CONTABILIDAD!#REF! -> 
B7: Fecha de Corte: | C7: =NOW() -> 2010-06-10T10:03:54.010
B9: FECHA | C9: DETALLE | D9: DEBE | E9: HABER
B12: 05 de febrero | C12: EL COSTO DE VENTA
D15: =SUM(D10:D12) -> 0 | E15: =SUM(E10:E12) -> 0
C16: SALDO | D16: =IF(D15>E15,D15-E15,"") ->  | E16: =IF(E15>D15,E15-D15,"") -> 

Sheet MY28
B2: RESTAURANTE CAMINOS DE HERRADURA
B4: MAYOR
B6: Cuenta: | C6: =CONTABILIDAD!C29 -> EQUIPO DE OFICINA | D6: Codigo: | E6: =CONTABILIDAD!B29 -> 1.2.08
B7: Fecha de Corte: | C7: =NOW() -> 2010-06-10T10:03:54.010
B9: FECHA | C9: DETALLE | D9: DEBE | E9: HABER
D14: =SUM(D10:D11) -> 0 | E14: =SUM(E10:E11) -> 0
C15: SALDO | D15: =IF(D14>E14,D14-E14,"") ->  | E15: =IF(E14>D14,E14-D14,"") -> 

Sheet MY29
B2: RESTAURANTE CAMINOS DE HERRADURA
B4: MAYOR
B6: Cuenta: | C6: =CONTABILIDAD!C30 -> (-) DEP. EQU. DE OFICINA | D6: Codigo: | E6: =CONTABILIDAD!B30 -> 1.2.09
B7: Fecha de Corte: | C7: =NOW() -> 2010-06-10T10:03:54.010
B9: FECHA | C9: DETALLE | D9: DEBE | E9: HABER
D14: =SUM(D10:D11) -> 0 | E14: =SUM(E10:E11) -> 0
C15: SALDO | D15: =IF(D14>E14,D14-E14,"") ->  | E15: =IF(E14>D14,E14-D14,"") -> 

Sheet MY30
B2: RESTAURANTE CAMINOS DE HERRADURA
B4: MAYOR
B6: Cuenta: | C6: =CONTABILIDAD!C31 -> EQUIPO DE COMPUTACIÓN | D6: Codigo: | E6: =CONTABILIDAD!B31 -> 1.2.10
B7: Fecha de Corte: | C7: =NOW() -> 2010-06-10T10:03:54.010
B9: FECHA | C9: DETALLE | D9: DEBE | E9: HABER
D14: =SUM(D10:D11) -> 0 | E14: =SUM(E10:E11) -> 0
C15: SALDO | D15: =IF(D14>E14,D14-E14,"") ->  | E15: =IF(E14>D14,E14-D14,"") -> 

Sheet MY31
B2: RESTAURANTE CAMINOS DE HERRADURA
B4: MAYOR
B6: Cuenta: | C6: =CONTABILIDAD!C32 -> (-) DEP. EQUIPO DE COMPUTACIÓN | D6: Codigo: | E6: =CONTABILIDAD!B32 -> 1.2.11
B7: Fecha de Corte: | C7: =NOW() -> 2010-06-10T10:03:54.010
B9: FECHA | C9: DETALLE | D9: DEBE | E9: HABER
D14: =SUM(D10:D11) -> 0 | E14: =SUM(E10:E11) -> 0
C15: SALDO | D15: =IF(D14>E14,D14-E14,"") ->  | E15: =IF(E14>D14,E14-D14,"") -> 

Sheet MY32
B2: RESTAURANTE CAMINOS DE HERRADURA
B4: MAYOR
B6: Cuenta: | C6: =CONTABILIDAD!C33 -> CUENTAS POR PAGAR | D6: Codigo: | E6: =CONTABILIDAD!B33 -> 2.1.01
B7: Fecha de Corte: | C7: =NOW() -> 2010-06-10T10:03:54.010
B9: FECHA | C9: DETALLE | D9: DEBE | E9: HABER
D14: =SUM(D10:D11) -> 0 | E14: =SUM(E10:E11) -> 0
C15: SALDO | D15: =IF(D14>E14,D14-E14,"") ->  | E15: =IF(E14>D14,E14-D14,"") -> 

Sheet MY33
B2: RESTAURANTE CAMINOS DE HERRADURA
B4: MAYOR
B6: Cuenta: | C6: =CONTABILIDAD!C34 -> IESS POR PAGAR | D6: Codigo: | E6: =CONTABILIDAD!B34 -> 2.1.02
B7: Fecha de Corte: | C7: =NOW() -> 2010-06-10T10:03:54.010
B9: FECHA | C9: DETALLE | D9: DEBE | E9: HABER
D14: =SUM(D10:D11) -> 0 | E14: =SUM(E10:E11) -> 0
C15: SALDO | D15: =IF(D14>E14,D14-E14,"") ->  | E15: =IF(E14>D14,E14-D14,"") -> 

Sheet MY34
B2: RESTAURANTE CAMINOS DE HERRADURA
B4: MAYOR
B6: Cuenta: | C6: =CONTABILIDAD!C35 -> SUELDO ACUMULADOS POR PAGAR | D6: Codigo: | E6: =CONTABILIDAD!B35 -> 2.1.03
B7: Fecha de Corte: | C7: =NOW() -> 2010-06-10T10:03:54.010
B9: FECHA | C9: DETALLE | D9: DEBE | E9: HABER
D14: =SUM(D10:D11) -> 0 | E14: =SUM(E10:E11) -> 0
C15: SALDO | D15: =IF(D14>E14,D14-E14,"") ->  | E15: =IF(E14>D14,E14-D14,"") -> 

Sheet MY35
B2: RESTAURANTE CAMINOS DE HERRADURA
B4: MAYOR
B6: Cuenta: | C6: =CONTABILIDAD!C36 -> PROVISIONES PATRONALES POR PAGAR | D6: Codigo: | E6: =CONTABILIDAD!B36 -> 2.1.04
B7: Fecha de Corte: | C7: =NOW() -> 2010-06-10T10:03:54.010
B9: FECHA | C9: DETALLE | D9: DEBE | E9: HABER
D14: =SUM(D10:D11) -> 0 | E14: =SUM(E10:E11) -> 0
C15: SALDO | D15: =IF(D14>E14,D14-E14,"") ->  | E15: =IF(E14>D14,E14-D14,"") -> 

Sheet MY36
B2: RESTAURANTE CAMINOS DE HERRADURA
B4: MAYOR
B6: Cuenta: | C6: =CONTABILIDAD!C37 -> IVA POR PAGAR | D6: Codigo: | E6: =CONTABILIDAD!B37 -> 2.1.05
B7: Fecha de Corte: | C7: =NOW() -> 2010-06-10T10:03:54.010
B9: FECHA | C9: DETALLE | D9: DEBE | E9: HABER
D14: =SUM(D10:D11) -> 0 | E14: =SUM(E10:E11) -> 0
C15: SALDO | D15: =IF(D14>E14,D14-E14,"") ->  | E15: =IF(E14>D14,E14-D14,"") -> 

Sheet MY37
B2: RESTAURANTE CAMINOS DE HERRADURA
B4: MAYOR
B6: Cuenta: | C6: =CONTABILIDAD!C38 -> IVA VENTAS | D6: Codigo: | E6: =CONTABILIDAD!B38 -> 2.1.06
B7: Fecha de Corte: | C7: =NOW() -> 2010-06-10T10:03:54.010
B9: FECHA | C9: DETALLE | D9: DEBE | E9: HABER
B12: 27 de febrero | C12: Servicios - banquetes | E12: $144.00
B13: 13 de febrero | C13: ventas de servicio orden N°. 501 | E13: $175.50
B14: 05 de febrero | C14: LA VENTA DEL SERVICIO - ORDEN N° 500 | E14: $54.00
D17: =SUM(D10:D14) -> 0 | E17: =SUM(E10:E14) -> $373.50
C18: SALDO | D18: =IF(D17>E17,D17-E17,"") ->  | E18: =IF(E17>D17,E17-D17,"") -> $373.50

Sheet MY38
B2: RESTAURANTE CAMINOS DE HERRADURA
B4: MAYOR
B6: Cuenta: | C6: =CONTABILIDAD!C39 -> IMPUESTO A LA RENTA POR PAGAR | D6: Codigo: | E6: =CONTABILIDAD!B39 -> 2.1.07
B7: Fecha de Corte: | C7: =NOW() -> 2010-06-10T10:03:54.010
B9: FECHA | C9: DETALLE | D9: DEBE | E9: HABER
D14: =SUM(D10:D11) -> 0 | E14: =SUM(E10:E11) -> 0
C15: SALDO | D15: =IF(D14>E14,D14-E14,"") ->  | E15: =IF(E14>D14,E14-D14,"") -> 

Sheet MY39
B2: RESTAURANTE CAMINOS DE HERRADURA
B4: MAYOR
B6: Cuenta: | C6: =CONTABILIDAD!C40 -> PRESTAMO BANCARIO POR PAGAR <1Año | D6: Codigo: | E6: =CONTABILIDAD!B40 -> 2.1.08
B7: Fecha de Corte: | C7: =NOW() -> 2010-06-10T10:03:54.010
B9: FECHA | C9: DETALLE | D9: DEBE | E9: HABER
D14: =SUM(D10:D11) -> 0 | E14: =SUM(E10:E11) -> 0
C15: SALDO | D15: =IF(D14>E14,D14-E14,"") ->  | E15: =IF(E14>D14,E14-D14,"") -> 

Sheet MY40
B2: RESTAURANTE CAMINOS DE HERRADURA
B4: MAYOR
B6: Cuenta: | C6: =CONTABILIDAD!C41 -> PRESTAMO BANCARIO POR PAGAR >1Año | D6: Codigo: | E6: =CONTABILIDAD!B41 -> 2.2.01
B7: Fecha de Corte: | C7: =NOW() -> 2010-06-10T10:03:54.010
B9: FECHA | C9: DETALLE | D9: DEBE | E9: HABER
B12: 01 de febrero | C12: Estado de Situación inicial | E12: $15,000.00
D15: =SUM(D10:D12) -> 0 | E15: =SUM(E10:E12) -> $15,000.00
C16: SALDO | D16: =IF(D15>E15,D15-E15,"") ->  | E16: =IF(E15>D15,E15-D15,"") -> $15,000.00

Sheet MY41
B2: RESTAURANTE CAMINOS DE HERRADURA
B4: MAYOR
B6: Cuenta: | C6: =CONTABILIDAD!C42 -> HIPOTECA POR PAGAR | D6: Codigo: | E6: =CONTABILIDAD!B42 -> 2.2.02
B7: Fecha de Corte: | C7: =NOW() -> 2010-06-10T10:03:54.010
B9: FECHA | C9: DETALLE | D9: DEBE | E9: HABER
D14: =SUM(D10:D11) -> 0 | E14: =SUM(E10:E11) -> 0
C15: SALDO | D15: =IF(D14>E14,D14-E14,"") ->  | E15: =IF(E14>D14,E14-D14,"") -> 

Sheet MY42
B2: RESTAURANTE CAMINOS DE HERRADURA
B4: MAYOR
B6: Cuenta: | C6: =CONTABILIDAD!C43 -> CAPITAL | D6: Codigo: | E6: =CONTABILIDAD!B43 -> 3.1.01
B7: Fecha de Corte: | C7: =NOW() -> 2010-06-10T10:03:54.010
B9: FECHA | C9: DETALLE | D9: DEBE | E9: HABER
B12: 01 de febrero | C12: Estado de Situación inicial | E12: $261,286.58
D15: =SUM(D10:D12) -> 0 | E15: =SUM(E10:E12) -> $261,286.58
C16: SALDO | D16: =IF(D15>E15,D15-E15,"") ->  | E16: =IF(E15>D15,E15-D15,"") -> $261,286.58

Sheet MY43
B2: RESTAURANTE CAMINOS DE HERRADURA
B4: MAYOR
B6: Cuenta: | C6: =CONTABILIDAD!C44 -> UTILIDAD DEL EJERCICIO | D6: Codigo: | E6: =CONTABILIDAD!B44 -> 3.1.02
B7: Fecha de Corte: | C7: =NOW() -> 2010-06-10T10:03:54.010
B9: FECHA | C9: DETALLE | D9: DEBE | E9: HABER
D14: =SUM(D10:D11) -> 0 | E14: =SUM(E10:E11) -> 0
C15: SALDO | D15: =IF(D14>E14,D14-E14,"") ->  | E15: =IF(E14>D14,E14-D14,"") -> 

Sheet MY44
B2: RESTAURANTE CAMINOS DE HERRADURA
B4: MAYOR
B6: Cuenta: | C6: =CONTABILIDAD!C45 -> PERDIDA DEL EJERCICIO | D6: Codigo: | E6: =CONTABILIDAD!B45 -> 3.1.03
B7: Fecha de Corte: | C7: =NOW() -> 2010-06-10T10:03:54.010
B9: FECHA | C9: DETALLE | D9: DEBE | E9: HABER
D14: =SUM(D10:D11) -> 0 | E14: =SUM(E10:E11) -> 0
C15: SALDO | D15: =IF(D14>E14,D14-E14,"") ->  | E15: =IF(E14>D14,E14-D14,"") -> 

Sheet MY45
B2: RESTAURANTE CAMINOS DE HERRADURA
B4: MAYOR
B6: Cuenta: | C6: =CONTABILIDAD!C46 -> VENTAS (SERVICIOS PRESTADOS) | D6: Codigo: | E6: =CONTABILIDAD!B46 -> 4.1.01
B7: Fecha de Corte: | C7: =NOW() -> 2010-06-10T10:03:54.010
B9: FECHA | C9: DETALLE | D9: DEBE | E9: HABER
B12: 27 de febrero | C12: Servicios - banquetes | E12: $1,200.00
B13: 13 de febrero | C13: ventas de servicio orden N°. 501 | E13: $1,462.50
B14: 05 de febrero | C14: LA VENTA DEL SERVICIO - ORDEN N° 500 | E14: $450.00
D17: =SUM(D10:D14) -> 0 | E17: =SUM(E10:E14) -> $3,112.50
C18: SALDO | D18: =IF(D17>E17,D17-E17,"") ->  | E18: =IF(E17>D17,E17-D17,"") -> $3,112.50

Sheet MY46
B2: RESTAURANTE CAMINOS DE HERRADURA
B4: MAYOR
B6: Cuenta: | C6: =CONTABILIDAD!C47 -> DESCUENTO EN VENTAS (SERV. PREST.) | D6: Codigo: | E6: =CONTABILIDAD!B47 -> 4.1.02
B7: Fecha de Corte: | C7: =NOW() -> 2010-06-10T10:03:54.010
B9: FECHA | C9: DETALLE | D9: DEBE | E9: HABER
D14: =SUM(D10:D11) -> 0 | E14: =SUM(E10:E11) -> 0
C15: SALDO | D15: =IF(D14>E14,D14-E14,"") ->  | E15: =IF(E14>D14,E14-D14,"") -> 

Sheet MY47
B2: RESTAURANTE CAMINOS DE HERRADURA
B4: MAYOR
B6: Cuenta: | C6: =CONTABILIDAD!C48 -> NÓMINA DE FABRICA | D6: Codigo: | E6: =CONTABILIDAD!B48 -> 5.1.02
B7: Fecha de Corte: | C7: =NOW() -> 2010-06-10T10:03:54.010
B9: FECHA | C9: DETALLE | D9: DEBE | E9: HABER
B12: 27 de febrero | C12: LA MANO DE OBRA SE TRASPASA A LA PRODUCCIÓN ORDEN N° 503 | E12: $120.00
B13: 27 de febrero | C13: SE REGISTRA LA MANO DE OBRA UTILIZADA ORDEN N° 503 | D13: $120.00
B14: 13 DE FEBRERO | C14: SE TRASPASA LA MANO DE OBRA A LA PRODUCCIÓN ORDEN N° 501 | E14: $16.00
B15: 13 DE FEBRERO | C15: SE REGISTRA LA MANO DE OBRA ORDEN N° 501 | D15: $16.00
B16: 05 de febrero | C16: SE TRASPASA LA NOMINA DE FABRICA A PRODUCCION ORDEN N° 500 | E16: $60.00
B17: 05 de febrero | C17: SE REGISTRA LA MANO DE OBRA ORDEN N° 500 | D17: $60.00
D20: =SUM(D10:D17) -> $196.00 | E20: =SUM(E10:E17) -> $196.00
C21: SALDO | D21: =IF(D20>E20,D20-E20,"") ->  | E21: =IF(E20>D20,E20-D20,"") -> 

Sheet MY48
B2: RESTAURANTE CAMINOS DE HERRADURA
B4: MAYOR
B6: Cuenta: | C6: =CONTABILIDAD!C49 -> COSTOS INDIRECTOS DE FABRICACIÓN | D6: Codigo: | E6: =CONTABILIDAD!B49 -> 5.1.03
B7: Fecha de Corte: | C7: =NOW() -> 2010-06-10T10:03:54.010
B9: FECHA | C9: DETALLE | D9: DEBE | E9: HABER
B12: 01 de marzo | C12: PARA CERRAR LOS CIF REALES Y APLICADOS | E12: $390.45
B13: 01 de marzo | C13: EL PAGO DE DISCOMOVIL | D13: $40.00
B14: 01 de marzo | C14: LA DEPRECIACIÓN ACUMULADA | D14: $276.61
B15: 01 de marzo | C15: EL CONSUMO S.O Y S.S. EL PAGO DE S. ASEO Y GAS | D15: $40.50
B16: 01 de marzo | C16: EL PAGO DE AGUA, LUZ, TELEFONO | D16: $33.34
D19: =SUM(D10:D16) -> $390.45 | E19: =SUM(E10:E16) -> $390.45
C20: SALDO | D20: =IF(D19>E19,D19-E19,"") ->  | E20: =IF(E19>D19,E19-D19,"") -> 

Sheet MY49
B2: RESTAURANTE CAMINOS DE HERRADURA
B4: MAYOR
B6: Cuenta: | C6: =CONTABILIDAD!C50 -> GASTO SUELDOS | D6: Codigo: | E6: =CONTABILIDAD!B50 -> 6.1.01
B7: Fecha de Corte: | C7: =NOW() -> 2010-06-10T10:03:54.010
B9: FECHA | C9: DETALLE | D9: DEBE | E9: HABER
B12: 01 de marzo | C12: PAGO DE SUELDO A JEFE DE RESTAURANTE | D12: $120.00
D15: =SUM(D10:D12) -> $120.00 | E15: =SUM(E10:E12) -> 0
C16: SALDO | D16: =IF(D15>E15,D15-E15,"") -> $120.00 | E16: =IF(E15>D15,E15-D15,"") -> 

Sheet MY50
B2: RESTAURANTE CAMINOS DE HERRADURA
B4: MAYOR
B6: Cuenta: | C6: =CONTABILIDAD!C51 -> GASTO APORTE PATRONAL | D6: Codigo: | E6: =CONTABILIDAD!B51 -> 6.1.02
B7: Fecha de Corte: | C7: =NOW() -> 2010-06-10T10:03:54.010
B9: FECHA | C9: DETALLE | D9: DEBE | E9: HABER
D14: =SUM(D10:D11) -> 0 | E14: =SUM(E10:E11) -> 0
C15: SALDO | D15: =IF(D14>E14,D14-E14,"") ->  | E15: =IF(E14>D14,E14-D14,"") -> 

Sheet MY51
B2: RESTAURANTE CAMINOS DE HERRADURA
B4: MAYOR
B6: Cuenta: | C6: =CONTABILIDAD!C52 -> GASTO SUMINISTROS DE OFICINA | D6: Codigo: | E6: =CONTABILIDAD!B52 -> 6.1.03
B7: Fecha de Corte: | C7: =NOW() -> 2010-06-10T10:03:54.010
B9: FECHA | C9: DETALLE | D9: DEBE | E9: HABER
B12: 01 de marzo | C12: CONSUMO DE SUMINISTROS DE OFICINA | D12: $1.00
D15: =SUM(D10:D12) -> $1.00 | E15: =SUM(E10:E12) -> 0
C16: SALDO | D16: =IF(D15>E15,D15-E15,"") -> $1.00 | E16: =IF(E15>D15,E15-D15,"") -> 

Sheet MY52
B2: RESTAURANTE CAMINOS DE HERRADURA
B4: MAYOR
B6: Cuenta: | C6: =CONTABILIDAD!C53 -> GASTO SUMINISTROS DE SERVICIO | D6: Codigo: | E6: =CONTABILIDAD!B53 -> 6.1.04
B7: Fecha de Corte: | C7: =NOW() -> 2010-06-10T10:03:54.010
B9: FECHA | C9: DETALLE | D9: DEBE | E9: HABER
D14: =SUM(D10:D11) -> 0 | E14: =SUM(E10:E11) -> 0
C15: SALDO | D15: =IF(D14>E14,D14-E14,"") ->  | E15: =IF(E14>D14,E14-D14,"") -> 

Sheet MY53
B2: RESTAURANTE CAMINOS DE HERRADURA
B4: MAYOR
B6: Cuenta: | C6: =CONTABILIDAD!C54 -> GASTOS GENERALES | D6: Codigo: | E6: =CONTABILIDAD!B54 -> 6.1.05
B7: Fecha de Corte: | C7: =NOW() -> 2010-06-10T10:03:54.010
B9: FECHA | C9: DETALLE | D9: DEBE | E9: HABER
D14: =SUM(D10:D11) -> 0 | E14: =SUM(E10:E11) -> 0
C15: SALDO | D15: =IF(D14>E14,D14-E14,"") ->  | E15: =IF(E14>D14,E14-D14,"") -> 

Sheet MY54
B2: RESTAURANTE CAMINOS DE HERRADURA
B4: MAYOR
B6: Cuenta: | C6: =CONTABILIDAD!C55 -> GASTO DEP. DE EDIFICIOS | D6: Codigo: | E6: =CONTABILIDAD!B55 -> 6.1.06
B7: Fecha de Corte: | C7: =NOW() -> 2010-06-10T10:03:54.010
B9: FECHA | C9: DETALLE | D9: DEBE | E9: HABER
D14: =SUM(D10:D11) -> 0 | E14: =SUM(E10:E11) -> 0
C15: SALDO | D15: =IF(D14>E14,D14-E14,"") ->  | E15: =IF(E14>D14,E14-D14,"") -> 

Sheet MY55
B2: RESTAURANTE CAMINOS DE HERRADURA
B4: MAYOR
B6: Cuenta: | C6: =CONTABILIDAD!C56 -> GASTO. DEP. VEHÍCULO | D6: Codigo: | E6: =CONTABILIDAD!B56 -> 6.1.07
B7: Fecha de Corte: | C7: =NOW() -> 2010-06-10T10:03:54.010
B9: FECHA | C9: DETALLE | D9: DEBE | E9: HABER
D14: =SUM(D10:D11) -> 0 | E14: =SUM(E10:E11) -> 0
C15: SALDO | D15: =IF(D14>E14,D14-E14,"") ->  | E15: =IF(E14>D14,E14-D14,"") -> 

Sheet MY56
B2: RESTAURANTE CAMINOS DE HERRADURA
B4: MAYOR
B6: Cuenta: | C6: =CONTABILIDAD!C57 -> GASTO. DEP. MUEBLES Y ENSERES | D6: Codigo: | E6: =CONTABILIDAD!B57 -> 6.1.08
B7: Fecha de Corte: | C7: =NOW() -> 2010-06-10T10:03:54.010
B9: FECHA | C9: DETALLE | D9: DEBE | E9: HABER
D14: =SUM(D10:D11) -> 0 | E14: =SUM(E10:E11) -> 0
C15: SALDO | D15: =IF(D14>E14,D14-E14,"") ->  | E15: =IF(E14>D14,E14-D14,"") -> 

Sheet MY57
B2: RESTAURANTE CAMINOS DE HERRADURA
B4: MAYOR
B6: Cuenta: | C6: =CONTABILIDAD!C58 -> GASTO. DEP. EQU. DE OFICINA | D6: Codigo: | E6: =CONTABILIDAD!B58 -> 6.1.09
B7: Fecha de Corte: | C7: =NOW() -> 2010-06-10T10:03:54.010
B9: FECHA | C9: DETALLE | D9: DEBE | E9: HABER
D14: =SUM(D10:D11) -> 0 | E14: =SUM(E10:E11) -> 0
C15: SALDO | D15: =IF(D14>E14,D14-E14,"") ->  | E15: =IF(E14>D14,E14-D14,"") -> 

Sheet MY58
B2: RESTAURANTE CAMINOS DE HERRADURA
B4: MAYOR
B6: Cuenta: | C6: =CONTABILIDAD!C59 -> GASTO. DEP. EQU. DE COMPUTACIÓN | D6: Codigo: | E6: =CONTABILIDAD!B59 -> 6.1.10
B7: Fecha de Corte: | C7: =NOW() -> 2010-06-10T10:03:54.010
B9: FECHA | C9: DETALLE | D9: DEBE | E9: HABER
D14: =SUM(D10:D11) -> 0 | E14: =SUM(E10:E11) -> 0
C15: SALDO | D15: =IF(D14>E14,D14-E14,"") ->  | E15: =IF(E14>D14,E14-D14,"") -> 

Sheet MY59
B2: RESTAURANTE CAMINOS DE HERRADURA
B4: MAYOR
B6: Cuenta: | C6: =CONTABILIDAD!C60 -> GASTO PUBLICIDAD | D6: Codigo: | E6: =CONTABILIDAD!B60 -> 6.2.01
B7: Fecha de Corte: | C7: =NOW() -> 2010-06-10T10:03:54.010
B9: FECHA | C9: DETALLE | D9: DEBE | E9: HABER
B12: 01 de marzo | C12: SE PAGA A SARANCE VISIÓN TV POR PUBLICIDAD | D12: $50.00
D15: =SUM(D10:D12) -> $50.00 | E15: =SUM(E10:E12) -> 0
C16: SALDO | D16: =IF(D15>E15,D15-E15,"") -> $50.00 | E16: =IF(E15>D15,E15-D15,"") -> 

Sheet MY60
B2: RESTAURANTE CAMINOS DE HERRADURA
B4: MAYOR
B6: Cuenta: | C6: =CONTABILIDAD!C61 -> GASTO TRANSPORTE | D6: Codigo: | E6: =CONTABILIDAD!B61 -> 6.2.02
B7: Fecha de Corte: | C7: =NOW() -> 2010-06-10T10:03:54.010
B9: FECHA | C9: DETALLE | D9: DEBE | E9: HABER
D14: =SUM(D10:D11) -> 0 | E14: =SUM(E10:E11) -> 0
C15: SALDO | D15: =IF(D14>E14,D14-E14,"") ->  | E15: =IF(E14>D14,E14-D14,"") -> 

Sheet MY61
B2: RESTAURANTE CAMINOS DE HERRADURA
B4: MAYOR
B6: Cuenta: | C6: =CONTABILIDAD!C62 -> GASTO INTERES | D6: Codigo: | E6: =CONTABILIDAD!B62 -> 6.3.01
B7: Fecha de Corte: | C7: =NOW() -> 2010-06-10T10:03:54.010
B9: FECHA | C9: DETALLE | D9: DEBE | E9: HABER
D14: =SUM(D10:D11) -> 0 | E14: =SUM(E10:E11) -> 0
C15: SALDO | D15: =IF(D14>E14,D14-E14,"") ->  | E15: =IF(E14>D14,E14-D14,"") -> 

Sheet MY62
B2: RESTAURANTE CAMINOS DE HERRADURA
B4: MAYOR
B6: Cuenta: | C6: =CONTABILIDAD!C63 -> FLETES EN COMPRAS | D6: Codigo: | E6: =CONTABILIDAD!B63 -> 6.3.02
B7: Fecha de Corte: | C7: =NOW() -> 2010-06-10T10:03:54.010
B9: FECHA | C9: DETALLE | D9: DEBE | E9: HABER
D14: =SUM(D10:D11) -> 0 | E14: =SUM(E10:E11) -> 0
C15: SALDO | D15: =IF(D14>E14,D14-E14,"") ->  | E15: =IF(E14>D14,E14-D14,"") -> 

Sheet MY63
B2: RESTAURANTE CAMINOS DE HERRADURA
B4: MAYOR
B6: Cuenta: | C6: =CONTABILIDAD!C64 -> MANO DE OBRA INDIRECTA | D6: Codigo: | E6: =CONTABILIDAD!B64 -> 5.1.02
B7: Fecha de Corte: | C7: =NOW() -> 2010-06-10T10:03:54.010
B9: FECHA | C9: DETALLE | D9: DEBE | E9: HABER
D14: =SUM(D10:D11) -> 0 | E14: =SUM(E10:E11) -> 0
C15: SALDO | D15: =IF(D14>E14,D14-E14,"") ->  | E15: =IF(E14>D14,E14-D14,"") -> 

Sheet MY64
B2: RESTAURANTE CAMINOS DE HERRADURA
B4: MAYOR
B6: Cuenta: | C6: =CONTABILIDAD!C65 -> OTROS COSTOS INDIRECTOS | D6: Codigo: | E6: =CONTABILIDAD!B65 -> 5.1.04
B7: Fecha de Corte: | C7: =NOW() -> 2010-06-10T10:03:54.010
B9: FECHA | C9: DETALLE | D9: DEBE | E9: HABER
D14: =SUM(D10:D11) -> 0 | E14: =SUM(E10:E11) -> 0
C15: SALDO | D15: =IF(D14>E14,D14-E14,"") ->  | E15: =IF(E14>D14,E14-D14,"") -> 

Sheet MY65
B2: RESTAURANTE CAMINOS DE HERRADURA
B4: MAYOR
B6: Cuenta: | C6: =CONTABILIDAD!C66 -> CIF APLICADOS | D6: Codigo: | E6: =CONTABILIDAD!B66 -> 0
B7: Fecha de Corte: | C7: =NOW() -> 2010-06-10T10:03:54.010
B9: FECHA | C9: DETALLE | D9: DEBE | E9: HABER
B12: 01 de marzo | C12: PARA CERRAR LOS CIF REALES Y APLICADOS | D12: $855.50
B13: 27 de febrero | C13: CIF APLICADOS A PRODUCCIÓN ORDEN N° 503 | E13: $354.00
B14: 13 DE FEBRERO | C14: LOS CIF APLICADOS ORDEN N° 501 | E14: $383.50
B15: 05 de febrero | C15: CIF APLICADOS A PRODUCCIÓN ORDEN N° 500 | E15: $118.00
D18: =SUM(D10:D15) -> $855.50 | E18: =SUM(E10:E15) -> $855.50
C19: SALDO | D19: =IF(D18>E18,D18-E18,"") ->  | E19: =IF(E18>D18,E18-D18,"") -> 

Sheet MY66
B2: RESTAURANTE CAMINOS DE HERRADURA
B4: MAYOR
B6: Cuenta: | C6: =CONTABILIDAD!C67 -> COSTO DE VENTA | D6: Codigo: | E6: =CONTABILIDAD!B67 -> 5.
B7: Fecha de Corte: | C7: =NOW() -> 2010-06-10T10:03:54.010
B9: FECHA | C9: DETALLE | D9: DEBE | E9: HABER
B12: 01 de marzo | C12: PASARLA VARIACIÓN DE CIF A COSTO DE VENTAS | E12: $465.05
B13: 27 de febrero | C13: COSTO DE VENTA ORDEN N° 503 | D13: $1,285.36
B14: 13 DE FEBRERO | C14: COSTO DE VENTA ORDEN N° 501 | D14: $1,062.99
B15: 05 de febrero | C15: EL COSTO DE VENTA ORDEN N° 500 | D15: $381.65
D18: =SUM(D10:D15) -> $2,730.00 | E18: =SUM(E10:E15) -> $465.05
C19: SALDO | D19: =IF(D18>E18,D18-E18,"") -> $2,264.95 | E19: =IF(E18>D18,E18-D18,"") -> 

Sheet MY67
B2: RESTAURANTE CAMINOS DE HERRADURA
B4: MAYOR
B6: Cuenta: | C6: =CONTABILIDAD!C68 -> MANO DE OBRA DIRECTA | D6: Codigo: | E6: =CONTABILIDAD!B68 -> 5.1.02.01
B7: Fecha de Corte: | C7: =NOW() -> 2010-06-10T10:03:54.010
B9: FECHA | C9: DETALLE | D9: DEBE | E9: HABER
B12: 27 de febrero | C12: SE REGISTRA LA MANO DE OBRA UTILIZADA ORDEN N° 503 | D12: $120.00
B13: 13 DE FEBRERO | C13: SE REGISTRA LA MANO DE OBRA | D13: $16.00
B14: 05 de febrero | C14: SE REGISTRA LA MANO DE OBRA | D14: $60.00
D17: =SUM(D10:D14) -> $196.00 | E17: =SUM(E10:E14) -> 0
C18: SALDO | D18: =IF(D17>E17,D17-E17,"") -> $196.00 | E18: =IF(E17>D17,E17-D17,"") -> 

Sheet MY68
B2: RESTAURANTE CAMINOS DE HERRADURA
B4: MAYOR
B6: Cuenta: | C6: =CONTABILIDAD!C69 -> DEPRECIACIÓN FABRICA | D6: Codigo: | E6: =CONTABILIDAD!B69 -> 5.1.03.01
B7: Fecha de Corte: | C7: =NOW() -> 2010-06-10T10:03:54.010
B9: FECHA | C9: DETALLE | D9: DEBE | E9: HABER
D14: =SUM(D10:D11) -> 0 | E14: =SUM(E10:E11) -> 0
C15: SALDO | D15: =IF(D14>E14,D14-E14,"") ->  | E15: =IF(E14>D14,E14-D14,"") -> 

Sheet MY69
B2: RESTAURANTE CAMINOS DE HERRADURA
B4: MAYOR
B6: Cuenta: | C6: =CONTABILIDAD!C70 -> ABONO VENTAS (SERVICIOS PRESTADOS) | D6: Codigo: | E6: =CONTABILIDAD!B70 -> 2.1.09
B7: Fecha de Corte: | C7: =NOW() -> 2010-06-10T10:03:54.010
B9: FECHA | C9: DETALLE | D9: DEBE | E9: HABER
B12: 27 de febrero | C12: ABONO DE CONTRATO N° 506 | E12: $100.00
B13: 27 de febrero | C13: ABONO DE CONTRATO N° 505 | E13: $162.00
B14: 27 de febrero | C14: Servicios - banquetes | D14: $300.00
B15: 20 de febrero | C15: ABONO PARA UN BANQUETE CONTRATO N° 504 | E15: $100.00
B16: 16 de febrero | C16: ABONO PARA UN BANQUETE CONTRATO N° 503 | E16: $300.00
B17: 15 de febrero | C17: ABONO PARA UN BANQUETE CONTRATO N° 502 | E17: $200.00
B18: 13 de febrero | C18: ventas de servicio orden N°. 501 | D18: $200.00
B19: 10 DE FEBRERO | C19: SE RECIBE UN ANTICIPO DE UN BANQUETE Orden N° 501 | E19: $200.00
D22: =SUM(D10:D19) -> $500.00 | E22: =SUM(E10:E19) -> $1,062.00
C23: SALDO | D23: =IF(D22>E22,D22-E22,"") ->  | E23: =IF(E22>D22,E22-D22,"") -> $562.00

Sheet MY70
B2: RESTAURANTE CAMINOS DE HERRADURA
B4: MAYOR
B6: Cuenta: | C6: =CONTABILIDAD!C71 -> SUB APLICACIÓN CIF | D6: Codigo: | E6: =CONTABILIDAD!B71 -> 0
B7: Fecha de Corte: | C7: =NOW() -> 2010-06-10T10:03:54.010
B9: FECHA | C9: DETALLE | D9: DEBE | E9: HABER
D14: =SUM(D10:D11) -> 0 | E14: =SUM(E10:E11) -> 0
C15: SALDO | D15: =IF(D14>E14,D14-E14,"") ->  | E15: =IF(E14>D14,E14-D14,"") -> 

Sheet MY71
B2: RESTAURANTE CAMINOS DE HERRADURA
B4: MAYOR
B6: Cuenta: | C6: =CONTABILIDAD!C72 -> SOBRE APLICACIÓN CIF | D6: Codigo: | E6: =CONTABILIDAD!B72 -> 0
B7: Fecha de Corte: | C7: =NOW() -> 2010-06-10T10:03:54.010
B9: FECHA | C9: DETALLE | D9: DEBE | E9: HABER
B12: 01 de marzo | C12: PASARLA VARIACIÓN DE CIF A COSTO DE VENTAS | D12: $465.05
B13: 01 de marzo | C13: PARA CERRAR LOS CIF REALES Y APLICADOS | E13: $465.05
D16: =SUM(D10:D13) -> $465.05 | E16: =SUM(E10:E13) -> $465.05
C17: SALDO | D17: =IF(D16>E16,D16-E16,"") ->  | E17: =IF(E16>D16,E16-D16,"") -> 

Sheet MY72
B2: RESTAURANTE CAMINOS DE HERRADURA
B4: MAYOR
B6: Cuenta: | C6: =CONTABILIDAD!C73 -> SUMINITROS DE SERVICIO | D6: Codigo: | E6: =CONTABILIDAD!B73 -> 1.1.09
B7: Fecha de Corte: | C7: =NOW() -> 2010-06-10T10:03:54.010
B9: FECHA | C9: DETALLE | D9: DEBE | E9: HABER
B12: 01 de marzo | C12: EL CONSUMO S.O Y S.S. EL PAGO DE S. ASEO Y GAS | E12: $2.70
B13: 01 de febrero | C13: ESTADO DE SITUACIÓN INICIAL | D13: $120.00
D16: =SUM(D10:D13) -> $120.00 | E16: =SUM(E10:E13) -> $2.70
C17: SALDO | D17: =IF(D16>E16,D16-E16,"") -> $117.30 | E17: =IF(E16>D16,E16-D16,"") -> 

Sheet MY73
B2: RESTAURANTE CAMINOS DE HERRADURA
B4: MAYOR
B6: Cuenta: | C6: =CONTABILIDAD!C74 -> MENAJE Y VAJILLA | D6: Codigo: | E6: =CONTABILIDAD!B74 -> 1.3.01
B7: Fecha de Corte: | C7: =NOW() -> 2010-06-10T10:03:54.010
B9: FECHA | C9: DETALLE | D9: DEBE | E9: HABER
B12: 01 de febrero | C12: ESTADO DE SITUACIÓN INICIAL | D12: $1,400.00
D15: =SUM(D10:D12) -> $1,400.00 | E15: =SUM(E10:E12) -> 0
C16: SALDO | D16: =IF(D15>E15,D15-E15,"") -> $1,400.00 | E16: =IF(E15>D15,E15-D15,"") -> 

Sheet MY74
B2: RESTAURANTE CAMINOS DE HERRADURA
B4: MAYOR
B6: Cuenta: | C6: =CONTABILIDAD!C75 -> (-)DEP. ACUM. MENAJE Y VAJILLA | D6: Codigo: | E6: =CONTABILIDAD!B75 -> 1.3.02
B7: Fecha de Corte: | C7: =NOW() -> 2010-06-10T10:03:54.010
B9: FECHA | C9: DETALLE | D9: DEBE | E9: HABER
B12: 01 de marzo | C12: LA DEPRECIACIÓN ACUMULADA | E12: $38.89
B13: 01 de febrero | C13: ESTADO DE SITUACIÓN INICIAL | D13: $(466.67)
D16: =SUM(D10:D13) -> $(466.67) | E16: =SUM(E10:E13) -> $38.89
C17: SALDO | D17: =IF(D16>E16,D16-E16,"") ->  | E17: =IF(E16>D16,E16-D16,"") -> $505.56

Sheet MY75
B2: RESTAURANTE CAMINOS DE HERRADURA
B4: MAYOR
B6: Cuenta: | C6: =CONTABILIDAD!C76 -> #'MY75'!A1 | D6: Codigo: | E6: =CONTABILIDAD!B76 -> 75
B7: Fecha de Corte: | C7: =NOW() -> 2010-06-10T10:03:54.010
B9: FECHA | C9: DETALLE | D9: DEBE | E9: HABER
D14: =SUM(D10:D11) -> 0 | E14: =SUM(E10:E11) -> 0
C15: SALDO | D15: =IF(D14>E14,D14-E14,"") ->  | E15: =IF(E14>D14,E14-D14,"") -> 

Sheet REPORTEV
B2: RESTAURANTE CAMINOS DE HERRADURA | K2: LENTEJAS
K3: LIMON
B4: REPORTE DE VENTAS | K4: LOMO
K5: MAGGI
K6: MAIZ
B7: Fecha de corte: | C7: =NOW() -> 2010-06-10T10:03:53.990 | K7: MANTECA
K8: MANTEQUILLA
B9: CLIENTE | C9: RUC | D9: FECHA | E9: DETALLE | F9: N° DE FACTURA O NOTA DE VENTA | G9: VALOR | H9: IVA COBRADO | K9: MARACUYA
K10: MELLOCOS
B13: Sr. Segundo Ajala | C13: 1007698450 | D13: 27 de febrero | E13: Servicios - banquetes ORDEN N° 503 | F13: 1675 | H13: $144.00
B14: Sr. Segundo Ajala | C14: 1007698450 | D14: 27 de febrero | E14: Servicios - banquetes ORDEN N° 503 | F14: 1675 | G14: $1,200.00
B15: Sra. Isabel Moreno | C15: 1005342766 | D15: 13 de febrero | E15: ventas de servicio ORDEN N°. 501 | F15: 1674 | H15: $175.50
B16: Sra. Isabel Moreno | C16: 1005342766 | D16: 13 de febrero | E16: ventas de servicio ORDEN N°. 501 | F16: 1674 | G16: $1,462.50
B17: Sra. Viviana Echeverria | C17: 1001524034 | D17: 05 de febrero | E17: LA VENTA DEL SERVICIO - ORDEN N° 500 | F17: 1673 | H17: $54.00
B18: Sra. Viviana Echeverria | C18: 1001524034 | D18: 05 de febrero | E18: LA VENTA DEL SERVICIO - ORDEN N° 500 | F18: 1673 | G18: $450.00
G20: =SUBTOTAL(9,G11:G18) -> $3,112.50 | H20: =SUBTOTAL(9,H11:H18) -> $373.50 | I20: =G20+H20 -> $3,486.00
G21: =SUM(G11:G18) -> $3,112.50 | H21: =SUM(H11:H18) -> $373.50 | I21: =G21+H21 -> $3,486.00

Sheet REPORTE
B2: RESTAURANTE CAMINOS DE HERRADURA | K2: LENTEJAS
K3: LIMON
B4: REPORTE DE COMPRAS | K4: LOMO
K5: MAGGI
K6: MAIZ
B7: Fecha de corte: | C7: =NOW() -> 2010-06-10T10:03:53.990 | K7: MANTECA
K8: MANTEQUILLA
B9: PROVEEDOR | C9: RUC | D9: FECHA | E9: DETALLE | F9: N° DE FACTURA O NOTA DE VENTA | G9: VALOR | H9: IVA PAGAD0 | K9: MARACUYA
K10: MELLOCOS
B13: SU COMISARIATO | C13: 1001563772001 | D13: 26 de febrero | E13: compras varias Orden N° 503 | F13: 7498 | H13: 10.04
B14: SU COMISARIATO | C14: 1001563772001 | D14: 26 de febrero | E14: compras varias Orden N° 503 | F14: 7498 | G14: $83.66
B15: Mr. Pollo | C15: 1002635074001 | D15: 26 de febrero | E15: compra de pollos Orden N° 503 | F15: 8350 | H15: 20.25
B16: Mr. Pollo | C16: 1002635074001 | D16: 26 de febrero | E16: compra de pollos Orden N° 503 | F16: 8350 | G16: $168.75
B17: Sr. Renan Haro | C17: 1003456978001 | D17: 26 de febrero | E17: compra de carne Orden N° 503 | F17: 1702 | H17: 35.29
B18: Sr. Renan Haro | C18: 1003456978001 | D18: 26 de febrero | E18: compra de carne Orden N° 503 | F18: 1702 | G18: $294.10
B19: Tienda Camary | C19: 1004563783 | D19: 26 de febrero | E19: compras varias Orden N° 503 | F19: C.E. 014 | G19: $45.85
B20: Sr. Juan Anrango | C20: 1007683540 | D20: 26 de febrero | E20: compra de verduras orden N° 503 | F20: C.E. 013 | G20: $24.00
B21: Sr. Carlos Benavidez | C21: 1002433744 | D21: 26 de febrero | E21: compra de verduras y hortalizas Orden N° 503 | F21: C.E. 012 | G21: $80.00
B22: Sra. Maria Perugachi | C22: 1005467346 | D22: 26 de febrero | E22: compras de verduras y frutas Orden N° 503 | F22: C.E. 011 | G22: $55.00
B23: Sra. Clemencia Velásquez | C23: 10034527698 | D23: 26 de febrero | E23: compras de verduras Orden N° 503 | F23: C.E. 010 | G23: $60.00
B24: SU COMISARIATO | C24: 1001563772001 | D24: 12 de febrero | E24: compras varias Orden N° 501 | F24: 7301 | H24: 10.04
B25: SU COMISARIATO | C25: 1001563772001 | D25: 12 de febrero | E25: compras varias Orden N° 501 | F25: 7301 | G25: $83.66
B26: Mr. Pollo | C26: 1002635074001 | D26: 12 de febrero | E26: compra de pollo Orden N° 501 | F26: 8100 | H26: 20.25
B27: Mr. Pollo | C27: 1002635074001 | D27: 12 de febrero | E27: compra de pollo Orden N° 501 | F27: 8100 | G27: $168.75
B28: Sr. Renan Haro | C28: 1003456978001 | D28: 12 de febrero | E28: Compra de carne Orden N° 501 | F28: 1632 | H28: 21.78
B29: Sr. Renan Haro | C29: 1003456978001 | D29: 12 de febrero | E29: Compra de carne Orden N° 501 | F29: 1632 | G29: $181.47
B30: Tienda Camary | C30: 1004563783 | D30: 12 de febrero | E30: Compras varias Orden N° 501 | F30: C.E. 008 | G30: $15.85
B31: Sr. Juan Anrango | C31: 1007683540 | D31: 12 de febrero | E31: compra de menudencia Orden N° 501 | F31: C.E. 007 | G31: $44.00
B32: Sr. Carlos Benavidez | C32: 1002433744 | D32: 12 de febrero | E32: compra de verduras, hortalizas y frutas | F32: C.E. 006 | G32: $60.00
B33: Sra. Maria Perugachi | C33: 1005467346 | D33: 12 de febrero | E33: compra de verduras Orden N° 501 | F33: C.E. 005 | G33: $45.84
B34: Sra. Clemencia Velásquez | C34: 10034527698 | D34: 12 de febrero | E34: compra de verduras Orden N° 501 | F34: C.E. 004 | G34: $63.92
B35: SU COMISARIATO | C35: 1001563772001 | D35: 04 de febrero | E35: compra de varias Orden N° 500 | F35: C.E. 003 | H35: 5.41
B36: SU COMISARIATO | C36: 1001563772001 | D36: 04 de febrero | E36: compra de varias Orden N° 500 | F36: C.E. 003 | G36: $45.06
B37: TIENDA CAMARI | C37: 1004563783 | D37: 04 de febrero | E37: compra de varias Orden N° 500 | F37: C.E. 003 | G37: $4.00
B38: Mr. Pollo | C38: 1002635074001 | D38: 04 de febrero | E38: Compra de pollo Orden N° 500 | F38: 7649 | H38: 8.04
B39: Mr. Pollo | C39: 1002635074001 | D39: 04 de febrero | E39: Compra de pollo Orden N° 500 | F39: 7649 | G39: $66.96
B40: Sr. Renan Haro | C40: 1003456978001 | D40: 04 de febrero | E40: Compra de carne Orden N°. 500 | F40: 1535 | H40: 5.62
B41: Sr. Renan Haro | C41: 1003456978001 | D41: 04 de febrero | E41: Compra de carne Orden N°. 500 | F41: 1535 | G41: $46.88
B42: Sra. Maria Perugachi | C42: 1005467346 | D42: 04 de febrero | E42: Compra de verduras Orden N°. 500 | F42: C.E. 002 | G42: $24.91
B43: Sra. Clemencia Velásquez | C43: 10034527698 | D43: 04 de febrero | E43: Compra de verduras Orden N°. 500 | F43: C.E. 001 | G43: $15.84
G45: =SUBTOTAL(9,G11:G44) -> $1,678.50 | H45: =SUBTOTAL(9,H11:H44) -> $136.72 | I45: =G45+H45 -> $1,815.22
G46: =SUM(G11:G44) -> $1,678.50 | H46: =SUM(H11:H44) -> $136.72 | I46: =G46+H46 -> $1,815.22

Sheet ESTADO DE COSTOS
B2: RESTAURANTE CAMINOS DE HERRADURA
B3: ESTADO DE COSTOS DE PRODUCTOS VENDIDOS
B4: Del 01 de febrero al 28 de febrero de 2010
B6: MATERIALES DIRECTOS
C7: Inventario de Materia Prima (II) 1ro de enero | F7: ='MY1'!D37 -> $140.00 | G7: ='MY1'!D11
C8: Compras de materias primas | D8: ='MY1'!D39-'MY1'!D37 -> $1,678.50 | G8: =REPORTE!G15
C9: (+) fletes en compras | D9: ='MY62'!D14 -> 0
C10: (=) Compras Brutas | D10: =D8+D9 -> $1,678.50
C11: (-) Devoluciones y rebajas en compras | D11: 0
C12: (=) (+) Compras Netas | F12: =D10+D11 -> $1,678.50
C13: (=) Materias primas disponibles para el uso | F13: =F7+F12 -> $1,818.50 | G13: = TOTAL MAYOR INVENTARIO DE MATERIA PRIMA
C14: (-) Inventario de Materia Prima (IF) 31 diciembre | F14: =IF('MY1'!D40="",0,'MY1'!D40) -> $140.00
C15: (=) Total de materias primas directas usadas | F15: =F13-F14 -> $1,678.50
B17: (+) MANO DE OBRA DIRECTA | F17: ='MY67'!D17 -> $196.00
B18: (=) COSTO PRIMO | F18: =F15+F17 -> $1,874.50
B19: (+) COSTOS INDIRECTOS DE FABRICACIÓN | F19: ='MY65'!E18 -> $855.50
D20: ='MY2'!D15 -> 
B21: (=) TOTAL DE COSTOS DE PRODUCCION DEL PERIODO | F21: =F18+F19 -> $2,730.00
B22: (+) Inventario de Productos en Proceso (II) 1ro de enero | F22: 0 | G22: ='MY13'!D11
B23: (=) COSTOS DE PRODUCCIÓN EN PROCESO | F23: =F21+F22 -> $2,730.00
B24: (-) Inventario de Producción en Proceso (IF) 31 de diciembre | F24: =IF('MY13'!D27="",0,'MY13'!D27) -> 0
B25: (=) COSTOS DE PRODUCTOS TERMINADOS | F25: =F23-F24 -> $2,730.00
B26: (+) Inventario de Productos Terminados (II) 1ro de enero | F26: 0 | G26: ='MY14'!D11
B27: (=) COSTO DE PRODUCTOS DISPONIBLES PARA LA VENTA | F27: =F25+F26 -> $2,730.00
B28: (-) Inventario de Productos Terminados (IF) 31 de diciembre | F28: =IF('MY14'!D21="",0,'MY14'!D21) -> 0
B29: VARIACIÓN CIF | F29: $(465.05)
B30: (=) COSTO DE PRODUCTOS VENDIDOS | F30: =F27-F28+F29 -> $2,264.95

Sheet BALANCE DE COMPROBACIÓN
A2: RESTAURANTE CAMINOS DE HERRADURA
A5: BALANCE DE COMPROBACIÓN
C10: SUMAS | E10: SALDOS
A11: CODIGO | B11: CUENTAS | C11: DEBE | D11: HABER | E11: DEBE | F11: HABER
A12: 1.1.01 | B12: CAJA | C12: ='MY4'!D44 -> $3,504.00 | D12: ='MY4'!E44 -> $1,490.02 | E12: =IF((C12-D12)>0,C12-D12,0) -> $2,013.98 | F12: =IF((C12-D12)<0,-(C12-D12),0) -> 0
A13: 1.1.02 | B13: BANCOS | C13: ='MY5'!D14 -> 0 | D13: ='MY5'!E14 -> 0 | E13: 0 | F13: =IF((C13-D13)<0,-(C13-D13),0) -> 0
A14: 1.1.03 | B14: CUENTAS POR COBRAR | C14: ='MY10'!D20 -> $3,416.00 | D14: ='MY10'!E20 -> $1,942.00 | E14: $1,474.00 | F14: 0
A15: 1.1.04 | B15: INVENTARIO DE MATERIA PRIMA | C15: ='MY1'!D39 -> $1,818.50 | D15: ='MY1'!E39 -> $1,678.50 | E15: $140.00 | F15: 0
A16: 1.1.05 | B16: INVENTARIO DE MATERIALES INDIRECTOS | C16: ='MY2'!D14 -> 0 | D16: ='MY2'!E14 -> 0 | E16: 0 | F16: 0
A17: 1.1.06 | B17: INVENTARIO DE PRODUCTO EN PROCESO | C17: ='MY13'!D26 -> $2,730.00 | D17: ='MY13'!E26 -> $2,730.00 | E17: $0.00 | F17: 0
A18: 1.1.07 | B18: INVENTARIO DE PRODUCTO TERMINADO | C18: ='MY14'!D20 -> $2,730.00 | D18: ='MY14'!E20 -> $2,730.00 | E18: 0 | F18: 0
A19: 1.1.08 | B19: SUMINISTROS DE OFICINA | C19: ='MY15'!D16 -> $100.00 | D19: ='MY15'!E16 -> $1.00 | E19: $99.00 | F19: 0
A20: 1.1.09 | B20: SUMINISTROS DE SERVICIO | C20: ='MY72'!D16 -> $120.00 | D20: ='MY72'!E16 -> $2.70 | E20: =IF((C20-D20)>0,C20-D20,0) -> $117.30 | F20: =IF((C20-D20)<0,-(C20-D20),0) -> 0
A21: 1.1.10 | B21: IVA COMPRAS | C21: ='MY3'!D23 -> $136.72 | D21: ='MY3'!E23 -> 0 | E21: $136.72 | F21: 0
A22: 1.1.11 | B22: ANTICIPO RETENCIÓN EN LA FUENTE | C22: ='MY17'!D14 -> 0 | D22: ='MY17'!E14 -> 0 | E22: 0 | F22: 0
A23: 1.1.12 | B23: IMPUESTO A LA RENTA PAGADOS POR ANTIC. | C23: ='MY18'!D14 -> 0 | D23: ='MY18'!E14 -> 0 | E23: 0 | F23: 0
A24: 1.2.01 | B24: TERRENO | C24: ='MY19'!D15 -> $50,000.00 | D24: ='MY19'!E15 -> 0 | E24: $50,000.00 | F24: 0
A25: 1.2.02 | B25: EDIFICIOS | C25: ='MY20'!D15 -> $230,000.00 | D25: ='MY20'!E15 -> 0 | E25: $230,000.00 | F25: 0
A26: 1.2.03 | B26: (-) DEP. ACUM. EDIFICIOS | C26: ='MY21'!D16 -> $(12,500.00) | D26: ='MY21'!E16 -> $125.00 | E26: 0 | F26: $12,625.00
A27: 1.2.04 | B27: MOBILIARIO Y EQUIPO | C27: ='MY22'!D15 -> $13,526.50 | D27: ='MY22'!E15 -> 0 | E27: $13,526.50 | F27: 0
A28: 1.2.05 | B28: (-) DEP. ACUM. MOB. Y EQUIPO | C28: ='MY23'!D16 -> $(6,763.25) | D28: ='MY23'!E16 -> $112.72 | E28: 0 | F28: $6,875.97
A29: 1.2.06 | B29: VEHÍCULOS | C29: ='MY24'!D14 -> 0 | D29: ='MY24'!E14 -> 0 | E29: 0 | F29: 0
A30: 1.2.07 | B30: (-) DEP. ACUM. VEHÍCULO | C30: ='MY25'!D14 -> 0 | D30: ='MY25'!E14 -> 0 | E30: =IF((C30-D30)>0,C30-D30,0) -> 0 | F30: =IF((C30-D30)<0,-(C30-D30),0) -> 0
A31: 1.2.08 | B31: MUEBLES Y ENSERES | C31: ='MY26'!D14 -> 0 | D31: ='MY26'!E14 -> 0 | E31: 0 | F31: 0
A32: 1.2.09 | B32: (-) DEP. MUEBLES Y ENSERES | C32: ='MY27'!D15 -> 0 | D32: ='MY27'!E15 -> 0 | E32: 0 | F32: 0
A33: 1.2.10 | B33: EQUIPO DE OFICINA | C33: ='MY28'!D14 -> 0 | D33: ='MY28'!E14 -> 0 | E33: 0 | F33: 0
A34: 1.2.11 | B34: (-) DEP. EQU. DE OFICINA | C34: ='MY29'!D14 -> 0 | D34: ='MY29'!E14 -> 0 | E34: 0 | F34: 0
A35: 1.2.12 | B35: EQUIPO DE COMPUTACIÓN | C35: ='MY30'!D14 -> 0 | D35: ='MY30'!E14 -> 0 | E35: 0 | F35: 0
A36: 1.2.13 | B36: (-) DEP. EQUIPO DE COMPUTACIÓN | C36: ='MY31'!D14 -> 0 | D36: ='MY31'!E14 -> 0 | E36: 0 | F36: 0
A37: ='MY73'!E6 -> 1.3.01 | B37: ='MY73'!C6 -> MENAJE Y VAJILLA | C37: ='MY73'!D15 -> $1,400.00 | D37: ='MY73'!E15 -> 0 | E37: =IF((C37-D37)>0,C37-D37,0) -> $1,400.00 | F37: =IF((C37-D37)<0,-(C37-D37),0) -> 0
A38: ='MY74'!E6 -> 1.3.02 | B38: ='MY74'!C6 -> (-)DEP. ACUM. MENAJE Y VAJILLA | C38: ='MY74'!D16 -> $(466.67) | D38: ='MY74'!E16 -> $38.89 | E38: 0 | F38: $505.56
A39: 2.1.01 | B39: CUENTAS POR PAGAR | C39: ='MY6'!D30 -> $669.67 | D39: ='MY6'!E30 -> $1,672.01 | E39: 0 | F39: $1,002.34
A40: 2.1.02 | B40: IESS POR PAGAR | C40: ='MY33'!D14 -> 0 | D40: ='MY33'!E14 -> 0 | E40: 0 | F40: 0
A41: 2.1.03 | B41: SUELDO ACUMULADOS POR PAGAR | C41: ='MY34'!D14 -> 0 | D41: ='MY34'!E14 -> 0 | E41: 0 | F41: 0
A42: 2.1.04 | B42: PROVISIONES PATRONALES POR PAGAR | C42: ='MY35'!D14 -> 0 | D42: ='MY35'!E14 -> 0 | E42: 0 | F42: 0
A43: 2.1.05 | B43: IVA POR PAGAR | C43: ='MY36'!D14 -> 0 | D43: ='MY36'!E14 -> 0 | E43: 0 | F43: 0
A44: 2.1.06 | B44: IVA VENTAS | C44: ='MY37'!D17 -> 0 | D44: ='MY37'!E17 -> $373.50 | E44: 0 | F44: $373.50
A45: 2.1.07 | B45: IMPUESTO A LA RENTA POR PAGAR | C45: ='MY38'!D14 -> 0 | D45: ='MY38'!E14 -> 0 | E45: 0 | F45: 0
A46: 2.1.08 | B46: PRESTAMO BANCARIO POR PAGAR <1Año | C46: ='MY39'!D14 -> 0 | D46: ='MY39'!E14 -> 0 | E46: 0 | F46: 0
A47: 2.2.01 | B47: PRESTAMO BANCARIO POR PAGAR >1Año | C47: ='MY40'!D15 -> 0 | D47: ='MY40'!E15 -> $15,000.00 | E47: 0 | F47: $15,000.00
A48: 2.2.02 | B48: HIPOTECA POR PAGAR | C48: ='MY41'!D14 -> 0 | D48: ='MY41'!E14 -> 0 | E48: 0 | F48: 0
A49: 3.1.01 | B49: CAPITAL | C49: ='MY42'!D15 -> 0 | D49: ='MY42'!E15 -> $261,286.58 | E49: 0 | F49: $261,286.58
A50: 3.1.02 | B50: UTILIDAD DEL EJERCICIO | C50: ='MY43'!D14 -> 0 | D50: ='MY43'!E14 -> 0 | E50: 0 | F50: 0
A51: 3.1.03 | B51: PERDIDA DEL EJERCICIO | C51: ='MY44'!D14 -> 0 | D51: ='MY44'!E14 -> 0 | E51: 0 | F51: 0
A52: 4.1.01 | B52: VENTAS (SERVICIOS PRESTADOS) | C52: ='MY45'!D17 -> 0 | D52: ='MY45'!E17 -> $3,112.50 | E52: 0 | F52: $3,112.50
A53: 2.1.09 | B53: ABONO VENTAS (SERVICIOS PRESTADOS) | C53: ='MY69'!D22 -> $500.00 | D53: ='MY69'!E22 -> $1,062.00 | E53: =IF((C53-D53)>0,C53-D53,0) -> 0 | F53: =IF((C53-D53)<0,-(C53-D53),0) -> $562.00
A54: 4.1.02 | B54: DESCUENTO EN VENTAS (SERV. PREST.) | C54: ='MY46'!D14 -> 0 | D54: ='MY46'!E14 -> 0 | E54: 0 | F54: 0
B55: NÓMINA DE FABRICA | C55: ='MY47'!D20 -> $196.00 | D55: ='MY47'!E20 -> $196.00 | E55: 0 | F55: 0
B56: COSTOS INDIRECTOS DE FABRICACIÓN | C56: ='MY48'!D19 -> $390.45 | D56: ='MY48'!E19 -> $390.45 | E56: $0.00 | F56: 0
B57: COSTOS INDIRECTOS DE FABRICACIÓN APLICADOS | C57: ='MY65'!D18 -> $855.50 | D57: ='MY65'!E18 -> $855.50 | E57: 0 | F57: =IF((C57-D57)<0,-(C57-D57),0) -> 0
A58: 6.1.01 | B58: GASTO SUELDOS | C58: ='MY49'!D15 -> $120.00 | D58: ='MY49'!E15 -> 0 | E58: $120.00 | F58: 0
A59: 6.1.02 | B59: GASTO APORTE PATRONAL | C59: ='MY50'!D14 -> 0 | D59: ='MY50'!E14 -> 0 | E59: 0 | F59: 0
A60: 6.1.03 | B60: GASTO SUMINISTROS DE OFICINA | C60: ='MY51'!D15 -> $1.00 | D60: ='MY51'!E15 -> 0 | E60: $1.00 | F60: 0
A61: 6.1.04 | B61: GASTO ARRIENDO | C61: ='MY52'!D14 -> 0 | D61: ='MY52'!E14 -> 0 | E61: 0 | F61: 0
A62: 6.1.05 | B62: GASTOS GENERALES | C62: ='MY53'!D14 -> 0 | D62: ='MY53'!E14 -> 0 | E62: 0 | F62: 0
A63: 6.1.06 | B63: GASTO DEP. DE EDIFICIOS | C63: ='MY54'!D14 -> 0 | D63: ='MY54'!E14 -> 0 | E63: 0 | F63: 0
A64: 6.1.07 | B64: GASTO. DEP. VEHÍCULO | C64: ='MY55'!D14 -> 0 | D64: ='MY55'!E14 -> 0 | E64: 0 | F64: 0
A65: 6.1.08 | B65: GASTO. DEP. MUEBLES Y ENSERES | C65: ='MY56'!D14 -> 0 | D65: ='MY56'!E14 -> 0 | E65: 0 | F65: 0
A66: 6.1.09 | B66: GASTO. DEP. EQU. DE OFICINA | C66: ='MY57'!D14 -> 0 | D66: ='MY57'!E14 -> 0 | E66: 0 | F66: 0
A67: 6.1.10 | B67: GASTO. DEP. EQU. DE COMPUTACIÓN | C67: ='MY58'!D14 -> 0 | D67: ='MY58'!E14 -> 0 | E67: 0 | F67: 0
A68: 6.2.01 | B68: GASTO PUBLICIDAD | C68: ='MY59'!D15 -> $50.00 | D68: ='MY59'!E15 -> 0 | E68: $50.00 | F68: 0
A69: 6.2.02 | B69: GASTO TRANSPORTE | C69: ='MY60'!D14 -> 0 | D69: ='MY60'!E14 -> 0 | E69: 0 | F69: 0
A70: 6.3.01 | B70: GASTO INTERES | C70: ='MY61'!D14 -> 0 | D70: ='MY61'!E14 -> 0 | E70: 0 | F70: 0
A71: 6.3.02 | B71: FLETES EN COMPRAS | C71: ='MY62'!D14 -> 0 | D71: ='MY62'!E14 -> 0 | E71: 0 | F71: 0
A72: 5. | B72: ='MY66'!C6 -> COSTO DE VENTA | C72: ='MY66'!D18 -> $2,730.00 | D72: ='MY66'!E18 -> $465.05 | E72: =IF((C72-D72)>0,C72-D72,0) -> $2,264.95 | F72: =IF((C72-D72)<0,-(C72-D72),0) -> 0
A79: TOTAL | C79: =SUM(C12:C78) -> $295,264.42 | D79: =SUM(D12:D78) -> $295,264.42 | E79: =SUM(E12:E78) -> $301,343.45 | F79: $301,343.45
C82: =C79-D79 -> 0 | E82: =E79-F79 -> 0

Sheet H0JA DE TRABAJO
A2: RESTAURANTE CAMINOS DE HERRADURA
A5: HOJA DE TRABAJO
A7: CODIGO | B7: CUENTAS | C7: SALDOS | E7: BALANCE DE AJUSTES | G7: BALANCE AJUSTADO | I7: ESTADO DE RESULTADOS | K7: BALANCE GENERAL
C8: DEBE | D8: HABER | E8: DEBE | F8: HABER | G8: DEBE | H8: HABER | I8: GASTOS | J8: INGRESOS | K8: ACTIVOS | L8: PASIVOS
A9: ='BALANCE DE COMPROBACIÓN'!A12 -> 1.1.01 | B9: ='BALANCE DE COMPROBACIÓN'!B12 -> CAJA | C9: ='BALANCE DE COMPROBACIÓN'!E12 -> $2,013.98 | D9: ='BALANCE DE COMPROBACIÓN'!F12 -> 0 | K9: =C9 -> $2,013.98
A10: ='BALANCE DE COMPROBACIÓN'!A13 -> 1.1.02 | B10: ='BALANCE DE COMPROBACIÓN'!B13 -> BANCOS | C10: ='BALANCE DE COMPROBACIÓN'!E13 -> 0 | D10: ='BALANCE DE COMPROBACIÓN'!F13 -> 0 | K10: =C10 -> 0
A11: ='BALANCE DE COMPROBACIÓN'!A14 -> 1.1.03 | B11: ='BALANCE DE COMPROBACIÓN'!B14 -> CUENTAS POR COBRAR | C11: ='BALANCE DE COMPROBACIÓN'!E14 -> $1,474.00 | D11: ='BALANCE DE COMPROBACIÓN'!F14 -> 0 | K11: $1,474.00
A12: ='BALANCE DE COMPROBACIÓN'!A15 -> 1.1.04 | B12: ='BALANCE DE COMPROBACIÓN'!B15 -> INVENTARIO DE MATERIA PRIMA | C12: ='BALANCE DE COMPROBACIÓN'!E15 -> $140.00 | D12: ='BALANCE DE COMPROBACIÓN'!F15 -> 0 | K12: $140.00
A13: ='BALANCE DE COMPROBACIÓN'!A16 -> 1.1.05 | B13: ='BALANCE DE COMPROBACIÓN'!B16 -> INVENTARIO DE MATERIALES INDIRECTOS | C13: ='BALANCE DE COMPROBACIÓN'!E16 -> 0 | D13: ='BALANCE DE COMPROBACIÓN'!F16 -> 0 | K13: 0
A14: ='BALANCE DE COMPROBACIÓN'!A17 -> 1.1.06 | B14: ='BALANCE DE COMPROBACIÓN'!B17 -> INVENTARIO DE PRODUCTO EN PROCESO | C14: ='BALANCE DE COMPROBACIÓN'!E17 -> $0.00 | D14: ='BALANCE DE COMPROBACIÓN'!F17 -> 0 | K14: $0.00
A15: ='BALANCE DE COMPROBACIÓN'!A18 -> 1.1.07 | B15: ='BALANCE DE COMPROBACIÓN'!B18 -> INVENTARIO DE PRODUCTO TERMINADO | C15: ='BALANCE DE COMPROBACIÓN'!E18 -> 0 | D15: ='BALANCE DE COMPROBACIÓN'!F18 -> 0 | K15: 0
A16: ='BALANCE DE COMPROBACIÓN'!A19 -> 1.1.08 | B16: ='BALANCE DE COMPROBACIÓN'!B19 -> SUMINISTROS DE OFICINA | C16: ='BALANCE DE COMPROBACIÓN'!E19 -> $99.00 | D16: ='BALANCE DE COMPROBACIÓN'!F19 -> 0 | K16: $99.00
A17: ='BALANCE DE COMPROBACIÓN'!A20 -> 1.1.09 | B17: ='BALANCE DE COMPROBACIÓN'!B20 -> SUMINISTROS DE SERVICIO | C17: ='BALANCE DE COMPROBACIÓN'!E20 -> $117.30 | D17: ='BALANCE DE COMPROBACIÓN'!F20 -> 0 | K17: =C17 -> $117.30
A18: ='BALANCE DE COMPROBACIÓN'!A21 -> 1.1.10 | B18: ='BALANCE DE COMPROBACIÓN'!B21 -> IVA COMPRAS | C18: ='BALANCE DE COMPROBACIÓN'!E21 -> $136.72 | D18: ='BALANCE DE COMPROBACIÓN'!F21 -> 0 | K18: $136.72
A19: ='BALANCE DE COMPROBACIÓN'!A22 -> 1.1.11 | B19: ='BALANCE DE COMPROBACIÓN'!B22 -> ANTICIPO RETENCIÓN EN LA FUENTE | C19: ='BALANCE DE COMPROBACIÓN'!E22 -> 0 | D19: ='BALANCE DE COMPROBACIÓN'!F22 -> 0 | K19: 0
A20: ='BALANCE DE COMPROBACIÓN'!A23 -> 1.1.12 | B20: ='BALANCE DE COMPROBACIÓN'!B23 -> IMPUESTO A LA RENTA PAGADOS POR ANTIC. | C20: ='BALANCE DE COMPROBACIÓN'!E23 -> 0 | D20: ='BALANCE DE COMPROBACIÓN'!F23 -> 0 | K20: 0
A21: ='BALANCE DE COMPROBACIÓN'!A24 -> 1.2.01 | B21: ='BALANCE DE COMPROBACIÓN'!B24 -> TERRENO | C21: ='BALANCE DE COMPROBACIÓN'!E24 -> $50,000.00 | D21: ='BALANCE DE COMPROBACIÓN'!F24 -> 0 | K21: $50,000.00
A22: ='BALANCE DE COMPROBACIÓN'!A25 -> 1.2.02 | B22: ='BALANCE DE COMPROBACIÓN'!B25 -> EDIFICIOS | C22: ='BALANCE DE COMPROBACIÓN'!E25 -> $230,000.00 | D22: ='BALANCE DE COMPROBACIÓN'!F25 -> 0 | K22: $230,000.00
A23: ='BALANCE DE COMPROBACIÓN'!A26 -> 1.2.03 | B23: ='BALANCE DE COMPROBACIÓN'!B26 -> (-) DEP. ACUM. EDIFICIOS | C23: ='BALANCE DE COMPROBACIÓN'!E26 -> 0 | D23: ='BALANCE DE COMPROBACIÓN'!F26 -> $12,625.00 | L23: =D23 -> $12,625.00
A24: ='BALANCE DE COMPROBACIÓN'!A27 -> 1.2.04 | B24: ='BALANCE DE COMPROBACIÓN'!B27 -> MOBILIARIO Y EQUIPO | C24: ='BALANCE DE COMPROBACIÓN'!E27 -> $13,526.50 | D24: ='BALANCE DE COMPROBACIÓN'!F27 -> 0 | K24: $13,526.50
A25: ='BALANCE DE COMPROBACIÓN'!A28 -> 1.2.05 | B25: ='BALANCE DE COMPROBACIÓN'!B28 -> (-) DEP. ACUM. MOB. Y EQUIPO | C25: ='BALANCE DE COMPROBACIÓN'!E28 -> 0 | D25: ='BALANCE DE COMPROBACIÓN'!F28 -> $6,875.97 | L25: =D25 -> $6,875.97
A26: ='BALANCE DE COMPROBACIÓN'!A29 -> 1.2.06 | B26: ='BALANCE DE COMPROBACIÓN'!B29 -> VEHÍCULOS | C26: ='BALANCE DE COMPROBACIÓN'!E29 -> 0 | D26: ='BALANCE DE COMPROBACIÓN'!F29 -> 0 | K26: 0
A27: ='BALANCE DE COMPROBACIÓN'!A30 -> 1.2.07 | B27: ='BALANCE DE COMPROBACIÓN'!B30 -> (-) DEP. ACUM. VEHÍCULO | C27: ='BALANCE DE COMPROBACIÓN'!E30 -> 0 | D27: ='BALANCE DE COMPROBACIÓN'!F30 -> 0 | L27: =D27 -> 0
A28: ='BALANCE DE COMPROBACIÓN'!A31 -> 1.2.08 | B28: ='BALANCE DE COMPROBACIÓN'!B31 -> MUEBLES Y ENSERES | C28: ='BALANCE DE COMPROBACIÓN'!E31 -> 0 | D28: ='BALANCE DE COMPROBACIÓN'!F31 -> 0 | K28: 0
A29: ='BALANCE DE COMPROBACIÓN'!A32 -> 1.2.09 | B29: ='BALANCE DE COMPROBACIÓN'!B32 -> (-) DEP. MUEBLES Y ENSERES | C29: ='BALANCE DE COMPROBACIÓN'!E32 -> 0 | D29: ='BALANCE DE COMPROBACIÓN'!F32 -> 0 | L29: =D29 -> 0
A30: ='BALANCE DE COMPROBACIÓN'!A33 -> 1.2.10 | B30: ='BALANCE DE COMPROBACIÓN'!B33 -> EQUIPO DE OFICINA | C30: ='BALANCE DE COMPROBACIÓN'!E33 -> 0 | D30: ='BALANCE DE COMPROBACIÓN'!F33 -> 0 | K30: 0
A31: ='BALANCE DE COMPROBACIÓN'!A34 -> 1.2.11 | B31: ='BALANCE DE COMPROBACIÓN'!B34 -> (-) DEP. EQU. DE OFICINA | C31: ='BALANCE DE COMPROBACIÓN'!E34 -> 0 | D31: ='BALANCE DE COMPROBACIÓN'!F34 -> 0 | L31: =D31 -> 0
A32: ='BALANCE DE COMPROBACIÓN'!A35 -> 1.2.12 | B32: ='BALANCE DE COMPROBACIÓN'!B35 -> EQUIPO DE COMPUTACIÓN | C32: ='BALANCE DE COMPROBACIÓN'!E35 -> 0 | D32: ='BALANCE DE COMPROBACIÓN'!F35 -> 0 | K32: 0
A33: ='BALANCE DE COMPROBACIÓN'!A36 -> 1.2.13 | B33: ='BALANCE DE COMPROBACIÓN'!B36 -> (-) DEP. EQUIPO DE COMPUTACIÓN | C33: ='BALANCE DE COMPROBACIÓN'!E36 -> 0 | D33: ='BALANCE DE COMPROBACIÓN'!F36 -> 0 | L33: =D33 -> 0
A34: ='BALANCE DE COMPROBACIÓN'!A37 -> 1.3.01 | B34: ='BALANCE DE COMPROBACIÓN'!B37 -> MENAJE Y VAJILLA | C34: ='BALANCE DE COMPROBACIÓN'!E37 -> $1,400.00 | D34: ='BALANCE DE COMPROBACIÓN'!F37 -> 0 | K34: =C34 -> $1,400.00
A35: ='BALANCE DE COMPROBACIÓN'!A38 -> 1.3.02 | B35: ='BALANCE DE COMPROBACIÓN'!B38 -> (-)DEP. ACUM. MENAJE Y VAJILLA | C35: ='BALANCE DE COMPROBACIÓN'!E38 -> 0 | D35: ='BALANCE DE COMPROBACIÓN'!F38 -> $505.56 | L35: =D35 -> $505.56
A37: ='BALANCE DE COMPROBACIÓN'!A39 -> 2.1.01 | B37: ='BALANCE DE COMPROBACIÓN'!B39 -> CUENTAS POR PAGAR | C37: ='BALANCE DE COMPROBACIÓN'!E39 -> 0 | D37: ='BALANCE DE COMPROBACIÓN'!F39 -> $1,002.34 | L37: =D37 -> $1,002.34
A38: ='BALANCE DE COMPROBACIÓN'!A53 -> 2.1.09 | B38: ='BALANCE DE COMPROBACIÓN'!B53 -> ABONO VENTAS (SERVICIOS PRESTADOS) | C38: ='BALANCE DE COMPROBACIÓN'!E53 -> 0 | D38: ='BALANCE DE COMPROBACIÓN'!F53 -> $562.00 | L38: =D38 -> $562.00
A39: ='BALANCE DE COMPROBACIÓN'!A40 -> 2.1.02 | B39: ='BALANCE DE COMPROBACIÓN'!B40 -> IESS POR PAGAR | C39: ='BALANCE DE COMPROBACIÓN'!E40 -> 0 | D39: ='BALANCE DE COMPROBACIÓN'!F40 -> 0 | L39: =D39 -> 0
A40: ='BALANCE DE COMPROBACIÓN'!A41 -> 2.1.03 | B40: ='BALANCE DE COMPROBACIÓN'!B41 -> SUELDO ACUMULADOS POR PAGAR | C40: ='BALANCE DE COMPROBACIÓN'!E41 -> 0 | D40: ='BALANCE DE COMPROBACIÓN'!F41 -> 0 | L40: 0
A41: ='BALANCE DE COMPROBACIÓN'!A42 -> 2.1.04 | B41: ='BALANCE DE COMPROBACIÓN'!B42 -> PROVISIONES PATRONALES POR PAGAR | C41: ='BALANCE DE COMPROBACIÓN'!E42 -> 0 | D41: ='BALANCE DE COMPROBACIÓN'!F42 -> 0 | L41: 0
A42: ='BALANCE DE COMPROBACIÓN'!A43 -> 2.1.05 | B42: ='BALANCE DE COMPROBACIÓN'!B43 -> IVA POR PAGAR | C42: ='BALANCE DE COMPROBACIÓN'!E43 -> 0 | D42: ='BALANCE DE COMPROBACIÓN'!F43 -> 0 | L42: 0
A43: ='BALANCE DE COMPROBACIÓN'!A44 -> 2.1.06 | B43: ='BALANCE DE COMPROBACIÓN'!B44 -> IVA VENTAS | C43: ='BALANCE DE COMPROBACIÓN'!E44 -> 0 | D43: ='BALANCE DE COMPROBACIÓN'!F44 -> $373.50 | L43: $373.50
A44: ='BALANCE DE COMPROBACIÓN'!A45 -> 2.1.07 | B44: ='BALANCE DE COMPROBACIÓN'!B45 -> IMPUESTO A LA RENTA POR PAGAR | C44: ='BALANCE DE COMPROBACIÓN'!E45 -> 0 | D44: ='BALANCE DE COMPROBACIÓN'!F45 -> 0 | L44: 0
A45: ='BALANCE DE COMPROBACIÓN'!A46 -> 2.1.08 | B45: ='BALANCE DE COMPROBACIÓN'!B46 -> PRESTAMO BANCARIO POR PAGAR <1Año | C45: ='BALANCE DE COMPROBACIÓN'!E46 -> 0 | D45: ='BALANCE DE COMPROBACIÓN'!F46 -> 0 | L45: 0
A46: ='BALANCE DE COMPROBACIÓN'!A47 -> 2.2.01 | B46: ='BALANCE DE COMPROBACIÓN'!B47 -> PRESTAMO BANCARIO POR PAGAR >1Año | C46: ='BALANCE DE COMPROBACIÓN'!E47 -> 0 | D46: ='BALANCE DE COMPROBACIÓN'!F47 -> $15,000.00 | L46: $15,000.00
A47: ='BALANCE DE COMPROBACIÓN'!A48 -> 2.2.02 | B47: ='BALANCE DE COMPROBACIÓN'!B48 -> HIPOTECA POR PAGAR | C47: ='BALANCE DE COMPROBACIÓN'!E48 -> 0 | D47: ='BALANCE DE COMPROBACIÓN'!F48 -> 0 | L47: 0
A48: ='BALANCE DE COMPROBACIÓN'!A49 -> 3.1.01 | B48: ='BALANCE DE COMPROBACIÓN'!B49 -> CAPITAL | C48: ='BALANCE DE COMPROBACIÓN'!E49 -> 0 | D48: ='BALANCE DE COMPROBACIÓN'!F49 -> $261,286.58 | L48: $261,286.58
A49: ='BALANCE DE COMPROBACIÓN'!A50 -> 3.1.02 | B49: ='BALANCE DE COMPROBACIÓN'!B50 -> UTILIDAD DEL EJERCICIO | C49: ='BALANCE DE COMPROBACIÓN'!E50 -> 0 | D49: ='BALANCE DE COMPROBACIÓN'!F50 -> 0 | L49: 0
A50: ='BALANCE DE COMPROBACIÓN'!A51 -> 3.1.03 | B50: ='BALANCE DE COMPROBACIÓN'!B51 -> PERDIDA DEL EJERCICIO | C50: ='BALANCE DE COMPROBACIÓN'!E51 -> 0 | D50: ='BALANCE DE COMPROBACIÓN'!F51 -> 0 | L50: 0
A51: ='BALANCE DE COMPROBACIÓN'!A52 -> 4.1.01 | B51: ='BALANCE DE COMPROBACIÓN'!B52 -> VENTAS (SERVICIOS PRESTADOS) | C51: ='BALANCE DE COMPROBACIÓN'!E52 -> 0 | D51: ='BALANCE DE COMPROBACIÓN'!F52 -> $3,112.50 | J51: =D51 -> $3,112.50
A55: ='BALANCE DE COMPROBACIÓN'!A58 -> 6.1.01 | B55: ='BALANCE DE COMPROBACIÓN'!B58 -> GASTO SUELDOS | C55: ='BALANCE DE COMPROBACIÓN'!E58 -> $120.00 | D55: ='BALANCE DE COMPROBACIÓN'!F58 -> 0 | I55: =C55 -> $120.00
A56: ='BALANCE DE COMPROBACIÓN'!A59 -> 6.1.02 | B56: ='BALANCE DE COMPROBACIÓN'!B59 -> GASTO APORTE PATRONAL | C56: ='BALANCE DE COMPROBACIÓN'!E59 -> 0 | D56: ='BALANCE DE COMPROBACIÓN'!F59 -> 0 | I56: =C56 -> 0
A57: ='BALANCE DE COMPROBACIÓN'!A60 -> 6.1.03 | B57: ='BALANCE DE COMPROBACIÓN'!B60 -> GASTO SUMINISTROS DE OFICINA | C57: ='BALANCE DE COMPROBACIÓN'!E60 -> $1.00 | D57: ='BALANCE DE COMPROBACIÓN'!F60 -> 0 | I57: $1.00
A58: ='BALANCE DE COMPROBACIÓN'!A61 -> 6.1.04 | B58: ='BALANCE DE COMPROBACIÓN'!B61 -> GASTO ARRIENDO | C58: ='BALANCE DE COMPROBACIÓN'!E61 -> 0 | D58: ='BALANCE DE COMPROBACIÓN'!F61 -> 0 | I58: 0
A59: ='BALANCE DE COMPROBACIÓN'!A62 -> 6.1.05 | B59: ='BALANCE DE COMPROBACIÓN'!B62 -> GASTOS GENERALES | C59: ='BALANCE DE COMPROBACIÓN'!E62 -> 0 | D59: ='BALANCE DE COMPROBACIÓN'!F62 -> 0 | I59: 0
A60: ='BALANCE DE COMPROBACIÓN'!A63 -> 6.1.06 | B60: ='BALANCE DE COMPROBACIÓN'!B63 -> GASTO DEP. DE EDIFICIOS | C60: ='BALANCE DE COMPROBACIÓN'!E63 -> 0 | D60: ='BALANCE DE COMPROBACIÓN'!F63 -> 0 | I60: 0
A61: ='BALANCE DE COMPROBACIÓN'!A64 -> 6.1.07 | B61: ='BALANCE DE COMPROBACIÓN'!B64 -> GASTO. DEP. VEHÍCULO | C61: ='BALANCE DE COMPROBACIÓN'!E64 -> 0 | D61: ='BALANCE DE COMPROBACIÓN'!F64 -> 0 | I61: 0
A62: ='BALANCE DE COMPROBACIÓN'!A65 -> 6.1.08 | B62: ='BALANCE DE COMPROBACIÓN'!B65 -> GASTO. DEP. MUEBLES Y ENSERES | C62: ='BALANCE DE COMPROBACIÓN'!E65 -> 0 | D62: ='BALANCE DE COMPROBACIÓN'!F65 -> 0 | I62: 0
A63: ='BALANCE DE COMPROBACIÓN'!A66 -> 6.1.09 | B63: ='BALANCE DE COMPROBACIÓN'!B66 -> GASTO. DEP. EQU. DE OFICINA | C63: ='BALANCE DE COMPROBACIÓN'!E66 -> 0 | D63: ='BALANCE DE COMPROBACIÓN'!F66 -> 0 | I63: 0
A64: ='BALANCE DE COMPROBACIÓN'!A67 -> 6.1.10 | B64: ='BALANCE DE COMPROBACIÓN'!B67 -> GASTO. DEP. EQU. DE COMPUTACIÓN | C64: ='BALANCE DE COMPROBACIÓN'!E67 -> 0 | D64: ='BALANCE DE COMPROBACIÓN'!F67 -> 0 | I64: 0
A65: ='BALANCE DE COMPROBACIÓN'!A68 -> 6.2.01 | B65: ='BALANCE DE COMPROBACIÓN'!B68 -> GASTO PUBLICIDAD | C65: ='BALANCE DE COMPROBACIÓN'!E68 -> $50.00 | D65: ='BALANCE DE COMPROBACIÓN'!F68 -> 0 | I65: $50.00
A66: ='BALANCE DE COMPROBACIÓN'!A69 -> 6.2.02 | B66: ='BALANCE DE COMPROBACIÓN'!B69 -> GASTO TRANSPORTE | C66: ='BALANCE DE COMPROBACIÓN'!E69 -> 0 | D66: ='BALANCE DE COMPROBACIÓN'!F69 -> 0 | I66: 0
A67: ='BALANCE DE COMPROBACIÓN'!A70 -> 6.3.01 | B67: ='BALANCE DE COMPROBACIÓN'!B70 -> GASTO INTERES | C67: ='BALANCE DE COMPROBACIÓN'!E70 -> 0 | D67: ='BALANCE DE COMPROBACIÓN'!F70 -> 0 | I67: 0
A68: ='BALANCE DE COMPROBACIÓN'!A71 -> 6.3.02 | B68: ='BALANCE DE COMPROBACIÓN'!B71 -> FLETES EN COMPRAS | C68: ='BALANCE DE COMPROBACIÓN'!E71 -> 0 | D68: ='BALANCE DE COMPROBACIÓN'!F71 -> 0 | I68: 0
A69: ='BALANCE DE COMPROBACIÓN'!A72 -> 5. | B69: ='BALANCE DE COMPROBACIÓN'!B72 -> COSTO DE VENTA | C69: ='BALANCE DE COMPROBACIÓN'!E72 -> $2,264.95 | D69: ='BALANCE DE COMPROBACIÓN'!F72 -> 0 | I69: $2,264.95
B74: TOTAL | C74: =SUM(C9:C73) -> $301,343.45 | D74: =SUM(D9:D73) -> $301,343.45
B76: AJUSTES | C76: =C74-D74 -> 0
A77: 31
A78: 32
A79: 33
A80: 34
A81: 35
A82: 36
A83: 37
A84: 38
A85: 39
A86: 40
A87: 41
A88: 42
D92: TOTAL | E92: =SUM(E11:E91) -> 0 | F92: =SUM(F12:F91) -> 0 | G92: =SUM(G9:G87) -> 0 | H92: =SUM(H10:H91) -> 0 | I92: =SUM(I9:I91) -> $2,435.95 | J92: =SUM(J9:J91) -> $3,112.50
B93: =IF(I93<0,"PÉRDIDA DEL EJERCICIO","UTILIDAD DEL EJERCICIO") -> UTILIDAD DEL EJERCICIO | I93: =J92-I92 -> $676.55 | K93: =IF(I93<1,(-I93),0) -> 0 | L93: =IF(I93>0,I93,0) -> $676.55
I94: =I92+I93 -> $3,112.50 | J94: =J92 -> $3,112.50 | K94: =SUM(K9:K93) -> $298,907.50 | L94: =SUM(L9:L93) -> $298,907.50
K97: =K94-L94 -> 0

Sheet ESTADO DERESULTADOS
B2: RESTAURANTE "CAMINOS DE HERRADURA"
B3: ESTADO DE RESULTADOS
B4: Del 01 de febrero al 28 de febrero de 2010
B6: 4. | C6: INGRESOS POR SERVICIOS | G6: ='BALANCE DE COMPROBACIÓN'!F52 -> $3,112.50
B7: 4.1.01 | E7: Ventas
B8: 5. | D8: (-) Costo de ventas | G8: ='ESTADO DE COSTOS'!F30 -> $2,264.95
B10: 4.1.04 | C10: UTILIDAD BRUTA EN VENTAS | G10: =G6-G8 -> $847.55
B11: 6. | C11: (-) GASTOS OPERACIONALES
B12: 6.1. | D12: Gastos Administrativos | G12: =SUM(F13:F16) -> $121.00
B13: 6.1.01 | E13: Sueldos | F13: ='H0JA DE TRABAJO'!I55 -> $120.00
B14: 6.1.02 | E14: Gasto aporte patronal | F14: ='H0JA DE TRABAJO'!I56 -> 0
B15: 6.1.03 | E15: Gasto Suministro de oficina | F15: ='H0JA DE TRABAJO'!I57 -> $1.00
B17: 6.2 | D17: Gastos Ventas | G17: =F18 -> $50.00
B18: 6.2.01 | E18: Publicidad | F18: ='H0JA DE TRABAJO'!I65 -> $50.00
B20: 6. | C20: TOTAL DE GASTO OPERACIONAL | G20: =G17+G12 -> $171.00
B21: 4.1.05 | C21: UTILIDAD OPERACIONAL | G21: =G10-G20 -> $676.55
B22: 6.3. | C22: (-) OTROS GASTOS | G22: 0
B23: 6.4 | C23: (+) OTROS INGRESOS | G23: =F24+F25 -> 0
B26: 4.1.06 | C26: UTILIDAD DEL EJERCICIO | G26: =G21+G23 -> $676.55
C27: (-) PARTICIPACIÓN DE TRABAJADORES | G27: =G26*15% -> $101.48
C28: (-) IMPUESTO A LA RENTA | G28: =(G26-G27)*25% -> $143.77
C29: UTILIDAD NETA DEL EJERCICIO | G29: =G26-G27-G28 -> $431.30

Sheet BALANCE GENERAL
B2: RESTAURANTE "CAMINOS DE HERRADURA"
B3: ESTADO DE SITUACION FINANCIERA
B4: Al 01 de marzo del 2010
B8: 1. | C8: ACTIVOS | G8: 2. | H8: PASIVOS | J8: =SUM(I11:I21) -> $16,937.84
G9: 2.1.
B10: 1.1 | C10: ACTIVOS CORRIENTES | E10: =SUM(D12:D18) -> $3,981.00
G11: ='H0JA DE TRABAJO'!A37 -> 2.1.01 | H11: CUENTAS POR PAGAR | I11: ='H0JA DE TRABAJO'!L37 -> $1,002.34
B12: ='H0JA DE TRABAJO'!A9 -> 1.1.01 | C12: CAJA | D12: ='H0JA DE TRABAJO'!K9 -> $2,013.98 | G12: ='H0JA DE TRABAJO'!A39 -> 2.1.02 | H12: IESS POR PAGAR | I12: ='H0JA DE TRABAJO'!L39 -> 0
B13: ='H0JA DE TRABAJO'!A10 -> 1.1.02 | C13: BANCOS | D13: ='H0JA DE TRABAJO'!K10 -> 0 | G13: ='H0JA DE TRABAJO'!A40 -> 2.1.03 | H13: REMUNERACIONES POR PAGAR | I13: ='H0JA DE TRABAJO'!L40 -> 0
B14: ='H0JA DE TRABAJO'!A11 -> 1.1.03 | C14: CLIENTES | D14: ='H0JA DE TRABAJO'!K11 -> $1,474.00 | G14: ='H0JA DE TRABAJO'!A41 -> 2.1.04 | H14: BENEFICIO SOC. POR PAGAR | I14: ='H0JA DE TRABAJO'!J41 -> 0
B15: ='H0JA DE TRABAJO'!A12 -> 1.1.04 | C15: INVENTARIOS | D15: ='H0JA DE TRABAJO'!K12 -> $140.00 | G15: ='H0JA DE TRABAJO'!A42 -> 2.1.05 | H15: IVA POR PAGAR | I15: ='H0JA DE TRABAJO'!L42 -> 0
B16: ='H0JA DE TRABAJO'!A18 -> 1.1.10 | C16: IVA COMPRAS | D16: ='H0JA DE TRABAJO'!K18 -> $136.72 | G16: ='H0JA DE TRABAJO'!A43 -> 2.1.06 | H16: IVA VENTAS | I16: ='H0JA DE TRABAJO'!L43 -> $373.50
B17: ='H0JA DE TRABAJO'!A16 -> 1.1.08 | C17: ='H0JA DE TRABAJO'!B16 -> SUMINISTROS DE OFICINA | D17: ='H0JA DE TRABAJO'!K16 -> $99.00 | G17: ='H0JA DE TRABAJO'!A38 -> 2.1.09 | H17: ABONO VENTAS (SERVICIOS) | I17: ='H0JA DE TRABAJO'!L38 -> $562.00
B18: ='H0JA DE TRABAJO'!A17 -> 1.1.09 | C18: ='H0JA DE TRABAJO'!B17 -> SUMINISTROS DE SERVICIO | D18: ='H0JA DE TRABAJO'!K17 -> $117.30
B20: 1.2 | C20: ACTIVOS FIJOS | E20: =SUM(D22:D34) -> $274,025.53
G21: ='H0JA DE TRABAJO'!A46 -> 2.2.01 | H21: ='H0JA DE TRABAJO'!B46 -> PRESTAMO BANCARIO POR PAGAR >1Año | I21: ='H0JA DE TRABAJO'!L46 -> $15,000.00
B22: ='H0JA DE TRABAJO'!A21 -> 1.2.01 | C22: ='H0JA DE TRABAJO'!B21 -> TERRENO | D22: ='H0JA DE TRABAJO'!K21 -> $50,000.00
B23: ='H0JA DE TRABAJO'!A22 -> 1.2.02 | C23: ='H0JA DE TRABAJO'!B22 -> EDIFICIOS | D23: ='H0JA DE TRABAJO'!K22 -> $230,000.00 | H23: PATRIMONIO | J23: =SUM(I24:I25) -> $261,963.13
B24: ='H0JA DE TRABAJO'!A23 -> 1.2.03 | C24: ='H0JA DE TRABAJO'!B23 -> (-) DEP. ACUM. EDIFICIOS | D24: =-'H0JA DE TRABAJO'!L23 -> $(12,625.00) | G24: ='H0JA DE TRABAJO'!A48 -> 3.1.01 | H24: CAPITAL | I24: ='H0JA DE TRABAJO'!L48 -> $261,286.58
B25: ='H0JA DE TRABAJO'!A24 -> 1.2.04 | C25: ='H0JA DE TRABAJO'!B24 -> MOBILIARIO Y EQUIPO | D25: ='H0JA DE TRABAJO'!K24 -> $13,526.50 | G25: ='H0JA DE TRABAJO'!A49 -> 3.1.02 | H25: =IF(I25<0, "PERDIDA DEL EJERCICIO","UTILIDAD DEL EJERCICIO") -> UTILIDAD DEL EJERCICIO | I25: ='ESTADO DERESULTADOS'!G26 -> $676.55
B26: ='H0JA DE TRABAJO'!A25 -> 1.2.05 | C26: ='H0JA DE TRABAJO'!B25 -> (-) DEP. ACUM. MOB. Y EQUIPO | D26: =-'H0JA DE TRABAJO'!L25 -> $(6,875.97)
B27: ='H0JA DE TRABAJO'!A26 -> 1.2.06 | C27: ='H0JA DE TRABAJO'!B26 -> VEHÍCULOS | D27: ='H0JA DE TRABAJO'!K26 -> 0
B28: ='H0JA DE TRABAJO'!A27 -> 1.2.07 | C28: ='H0JA DE TRABAJO'!B27 -> (-) DEP. ACUM. VEHÍCULO | D28: =-'H0JA DE TRABAJO'!L27 -> 0
B29: ='H0JA DE TRABAJO'!A28 -> 1.2.08 | C29: ='H0JA DE TRABAJO'!B28 -> MUEBLES Y ENSERES | D29: ='H0JA DE TRABAJO'!K28 -> 0
B30: ='H0JA DE TRABAJO'!A29 -> 1.2.09 | C30: ='H0JA DE TRABAJO'!B29 -> (-) DEP. MUEBLES Y ENSERES | D30: =-'H0JA DE TRABAJO'!L29 -> 0
B31: ='H0JA DE TRABAJO'!A30 -> 1.2.10 | C31: ='H0JA DE TRABAJO'!B30 -> EQUIPO DE OFICINA | D31: ='H0JA DE TRABAJO'!K30 -> 0
B32: ='H0JA DE TRABAJO'!A31 -> 1.2.11 | C32: ='H0JA DE TRABAJO'!B31 -> (-) DEP. EQU. DE OFICINA | D32: =-'H0JA DE TRABAJO'!L31 -> 0
B33: ='H0JA DE TRABAJO'!A32 -> 1.2.12 | C33: ='H0JA DE TRABAJO'!B32 -> EQUIPO DE COMPUTACIÓN | D33: ='H0JA DE TRABAJO'!K32 -> 0
B34: ='H0JA DE TRABAJO'!A33 -> 1.2.13 | C34: ='H0JA DE TRABAJO'!B33 -> (-) DEP. EQUIPO DE COMPUTACIÓN | D34: =-'H0JA DE TRABAJO'!L33 -> 0
B36: 1.3 | C36: OTROS ACTIVOS | E36: =SUM(D37:D38) -> $894.44
B37: 1.3.01 | C37: ='H0JA DE TRABAJO'!B34 -> MENAJE Y VAJILLA | D37: ='H0JA DE TRABAJO'!K34 -> $1,400.00
B38: 1.3.02 | C38: ='H0JA DE TRABAJO'!B35 -> (-)DEP. ACUM. MENAJE Y VAJILLA | D38: =-'H0JA DE TRABAJO'!L35 -> $(505.56)
C40: TOTAL DE ACTIVOS | E40: =E20+E10+E36 -> $278,900.97 | H40: TOTAL DE PASIVOS+PATRIMONIO | J40: =J23+J8 -> $278,900.97
H43: =E40-J40 -> 0
